Cogmind - Beta 16 @@@ ROGUE MODE // 2025.12.29 @ 13:03:59 Player: C0-2MO Result: Escaped! Performance ------------- Evolutions (9) 4500 Regions Visited (30) 6000 Robots Destroyed (445) 2225 Value Destroyed (29916) 29916 Prototype IDs (180) 3600 Alien Tech Used (8) 1600 Bonus (62251) 62251 TOTAL SCORE: 110092 Bonus ------- Triggered High Security 500 High Alert Combat Kills 23230 Follower Combat Kills 2693 Destroyed Unchained 1000 Network Hubs Disabled 200 Registered with UFD 300 Met Optimus in HQ 500 Met Data Miner 300 Met Warlord at Base 500 MAIN.C Attacked Warlord 500 Built Enhanced Grunts 300 A7 Reached Mainframe 300 Met R17 at Cetus 500 Met R17 at Research 2000 Scanned by Researcher 500 Destroyed Superfortress 15000 Met Optimus at Protoforge 1000 Executed Drillbomb Mission 10000 Win 3000 Friendly Fire -72 Cogmind --------- Core Integrity 980/1600 Matter 300/300 Energy 542/1550 System Corruption 31% Temperature Cool (10) Movement Hovering (122) Ox1 Location To Epsilon Eridani Parts ------- > --- POWER (2) -------- Experimental Antimatter Reactor > --- PROPULSION (8) --- Experimental Gyrokinetic Inverter Experimental Gyrokinetic Inverter (fused) Combat Linear Gravjet Combat Linear Gravjet Combat Linear Gravjet > --- UTILITY (12) ----- Advanced Heat Sink Concept Antigrav Storage Unit Concept Chromion Battery Experimental Active Sensor Suite Concept Melee Reflex Suite Concept Weapon Articulator Experimental Core Analyzer Femtoactuators Concept RG22 Armor Graphene Brace Advanced Dynamic Insulation System > --- WEAPON (3) ------- Concept Disintegration Ray > --- INVENTORY (25) --- Mini Fusion Reactor Improved Quantum Reactor Advanced Heat Sink Advanced Heat Sink Advanced Cooling System Concept NT7 Matterbank (750) Deep Structural Scanner Experimental Core Analyzer Concept Antimissile System Concept Matter Streamer Transdimensional Reconstructor Peak State ------------ > --- POWER ------------ Concept Zero-point Core Concept Zero-point Core > --- PROPULSION ------- Experimental Antigrav System Gravjet Array Gravjet Array Concept Combat Aerolev Unit Concept Gyrokinetic System Concept Gyrokinetic System > --- UTILITY ---------- Concept Antigrav Storage Unit Deep Structural Scanner Experimental Optical Array Experimental Signal Interpreter Concept Weapon Articulator Experimental Core Analyzer Experimental Reaction Control System Concept Cloak Mesh Concept Cloak Mesh Concept RG22 Armor Graphene Brace Concept Energy Mantle > --- WEAPON ----------- Concept Plasma Driver Sigix Broadsword > --- INVENTORY -------- Experimental Antimatter Reactor Experimental Gyrokinetic Inverter Experimental Gyrokinetic Inverter Gravjet Array Concept Chromion Battery Concept NT7 Matterbank Experimental Active Sensor Suite Concept Melee Reflex Suite Femtoactuators Femtoactuators Experimental Force Booster Experimental Reaction Control System Experimental Reaction Control System Advanced Phase Shifter Thermal Barrier Concept Energy Mantle Concept Antimissile System Concept Matter Streamer Transdimensional Reconstructor Concept Disintegration Ray Concept Miniperforator Experimental Jetlance Experimental Jetlance [Rating: 301] Favorites ----------- Power Concept Zero-point Core Engine Subdweller Power Source Power Core Concept Zero-point Core Reactor Vortex Chain Reactor Propulsion Cooled Cesium-ion Thruster Treads Spiked Treads Leg Carbon-fiber Leg Wheel Subdweller Monowheel Hover Unit Concept Gyrokinetic System Flight Unit Cooled Cesium-ion Thruster Utility Improved Hacking Suite Device Advanced Sensor Array Storage Medium Storage Unit Processor Rainbow Chip Hackware Improved Hacking Suite Protection Scrap Shield Weapon Power Sword Energy Gun Riot Gun Energy Cannon Subdweller Beam Cannon Ballistic Gun Battle Rifle Ballistic Cannon Concept Miniperforator Launcher Concept Rapid Grenade Launcher Special Weapon CPS Tube Impact Weapon Hammer Slashing Weapon Power Sword Piercing Weapon Experimental Jetlance Special Melee Weapon Advanced Datajack Build | -11 -10 -10 -10 -9 -9 -6 -6 -6 -6 -6 -6 -5 -5 -5 -5 -5 -5 -5 -5 -4 -4 -4 -4 -3 -3 -3 -2 -2 -2 -1 ------- Run | Yrd Mat Min Sub Rec Scr Fac Was Fac Low Low Dat Pro Fac Was Fac Ext Cet Arc Hub Fac Upp Upp War Pro Res Qua Res Tes Frg Acc Slots Evolved 18 | . . . . . . 8 . . . . . . 2 . . . . . . 2 . . . . 2 . 2 . . 2 Power 1 | . . . . . . . . . . . . . . . . . . . . 1 . . . . . . . . . . Propulsion 6 | . . . . . . 3 . . . . . . 1 . . . . . . 1 . . . . 1 . . . . . Utility 10 | . . . . . . 5 . . . . . . 1 . . . . . . . . . . . 1 . 2 . . 1 Weapon 1 | . . . . . . . . . . . . . . . . . . . . . . . . . . . . . . 1 Parts Attached 265 | 5 2 7 23 . 3 42 . 15 . . . 1 4 7 4 3 4 4 . 15 1 . 8 . 11 3 . 4 72 27 Power 24 | . . 1 2 . 1 4 . . . . . . 2 . 1 . . 1 . 2 . . 1 . . . . . 8 1 Engine 9 | . . 1 2 . 1 2 . . . . . . . . 1 . . 1 . 1 . . . . . . . . . . Core 10 | . . . . . . 2 . . . . . . 2 . . . . . . 1 . . . . . . . . 5 . Reactor 5 | . . . . . . . . . . . . . . . . . . . . . . . 1 . . . . . 3 1 Propulsion 55 | 2 . 2 8 . . 10 . 3 . . . . . 3 . . 1 . . 1 . . 2 . 3 . . 1 12 7 Treads 5 | 2 . . 2 . . . . . . . . . . . . . 1 . . . . . . . . . . . . . Leg 2 | . . 2 . . . . . . . . . . . . . . . . . . . . . . . . . . . . Wheel 6 | . . . 6 . . . . . . . . . . . . . . . . . . . . . . . . . . . Hover 14 | . . . . . . . . . . . . . . . . . . . . . . . . . . . . . 7 7 Flight 28 | . . . . . . 10 . 3 . . . . . 3 . . . . . 1 . . 2 . 3 . . 1 5 . Utility 128 | 1 . 2 3 . 2 19 . 9 . . . 1 1 3 3 1 1 2 . 10 1 . 4 . 6 1 . 1 39 18 Device 73 | 1 . 1 1 . 1 8 . 5 . . . . . 3 3 1 . . . 7 . . 1 . 2 1 . . 24 14 Storage 9 | . . . . . 1 . . 1 . . . . . . . . . . . 1 . . 1 . 2 . . . 2 1 Processor 20 | . . 1 1 . . 4 . 1 . . . 1 . . . . . . . 1 . . 1 . . . . . 9 1 Hackware 17 | . . . . . . 7 . 2 . . . . . . . . . 2 . 1 . . 1 . 2 . . 1 1 . Protection 9 | . . . 1 . . . . . . . . . 1 . . . 1 . . . 1 . . . . . . . 3 2 Artifact . | . . . . . . . . . . . . . . . . . . . . . . . . . . . . . . . Weapon 58 | 2 2 2 10 . . 9 . 3 . . . . 1 1 . 2 2 1 . 2 . . 1 . 2 2 . 2 13 1 Energy Gun 8 | . . 2 2 . . . . . . . . . . . . . . . . . . . . . . . . 1 2 1 Energy Cannon 7 | . . . 2 . . . . 1 . . . . . . . . 1 . . . . . 1 . . . . 1 1 . Ballistic Gun 15 | 2 1 . 6 . . 3 . . . . . . . . . . 1 . . 1 . . . . . . . . 1 . Ballistic Cannon 4 | . . . . . . . . 1 . . . . . . . 1 . . . . . . . . . . . . 2 . Launcher 5 | . . . . . . . . . . . . . . 1 . . . . . . . . . . . 1 . . 3 . Special Weapon 3 | . . . . . . . . 1 . . . . . . . 1 . . . . . . . . . . . . 1 . Impact Weapon 2 | . 1 . . . . . . . . . . . . . . . . . . . . . . . 1 . . . . . Slashing Weapon 6 | . . . . . . 3 . . . . . . . . . . . . . 1 . . . . 1 1 . . . . Piercing Weapon 3 | . . . . . . . . . . . . . . . . . . . . . . . . . . . . . 3 . Special Melee Weapon 5 | . . . . . . 3 . . . . . . 1 . . . . 1 . . . . . . . . . . . . Unidentified Prototypes 56 | . . 1 . . . 5 . . . . . . 1 . 2 . 4 . . 6 . . 7 . 1 4 . 3 21 1 Parts Lost 52 | . . . 5 . . 10 . 4 . . . . . . 2 . . . . . . . . . 1 . . . 5 25 Power 4 | . . . 1 . . 1 . . . . . . . . . . . . . . . . . . . . . . . 2 Propulsion 14 | . . . 2 . . 1 . 2 . . . . . . 1 . . . . . . . . . . . . . 2 6 Utility 25 | . . . 1 . . 6 . 2 . . . . . . 1 . . . . . . . . . 1 . . . 2 12 Weapon 9 | . . . 1 . . 2 . . . . . . . . . . . . . . . . . . . . . . 1 5 Highest Loss Streak 7 | . . . 2 . . 3 . 2 . . . . . . 2 . . . . . . . . . 1 . . . 2 7 To Critical Strikes 1 | . . . 1 . . . . . . . . . . . . . . . . . . . . . . . . . . . Average Backups 9 | 1 4 4 3 2 4 4 5 7 9 9 9 9 8 9 9 9 8 9 10 9 10 10 10 10 9 13 12 13 18 19 Power . | . 1 . . . . . . . . . . . . . . . . . 1 . . . . . . . 1 1 . 1 Propulsion 1 | 1 1 . . 1 . . 1 1 1 1 1 1 . 1 1 1 1 1 1 1 2 2 2 2 1 2 1 . . 3 Utility 5 | . . 1 1 1 2 3 3 3 5 5 5 5 4 4 4 4 4 4 5 6 7 7 7 7 7 6 5 6 11 12 Weapon 1 | . 1 3 1 . . . . . 1 1 1 1 1 1 1 1 2 2 2 1 1 1 1 1 1 . 1 1 4 1 Tool/Special . | . . . . . . . . . . . . . . . . . . . . . . . . . . . . . . . Unused Backups 34 | . 2 2 2 . . 2 . . . . . . . . . 1 . . . 6 . . . . 2 2 . 1 9 5 Power 4 | . . 1 . . . . . . . . . . . . . . . . . 2 . . . . . . . . . 1 Propulsion 4 | . 2 . 1 . . . . . . . . . . . . . . . . . . . . . . . . . 1 . Utility 21 | . . 1 . . . 2 . . . . . . . . . 1 . . . 3 . . . . 2 1 . 1 7 3 Weapon 3 | . . . 1 . . . . . . . . . . . . . . . . 1 . . . . . . . . 1 . Tool/Special 2 | . . . . . . . . . . . . . . . . . . . . . . . . . . 1 . . . 1 Average Slot Usage (%) 84 | . 70 72 75 72 71 85 100 95 87 87 87 87 89 94 91 89 88 93 94 97 100 100 97 94 90 90 90 91 91 85 Engine 3 | . . . 10 9 6 3 . . . . . . . . . . . 4 5 7 5 5 2 . . . . . . . Core 2 | . . . . . . 2 6 6 6 6 6 6 5 5 4 5 5 . . 2 5 5 2 . . . . . 6 7 Treads 4 | . 28 20 9 18 18 . . . . . . . . . . . . . . . . . . . . . . . . . Leg 1 | . . 7 4 . . . . . . . . . . . . . . . . . . . . . . . . . . . Wheel 1 | . . . 8 . . . . . . . . . . . . . . . . . . . . . . . . . . . Hover 3 | . . . . . . . . . . . . . . . . . . . . . . . . . . . . . 8 25 Flight 16 | . . . . . . 24 31 30 31 31 31 31 30 32 33 35 34 35 35 35 36 36 36 36 38 38 33 34 21 . Device 13 | . 13 14 . . 3 15 18 12 12 12 12 12 13 14 10 11 11 11 11 17 20 21 20 21 20 23 29 30 24 25 Storage 2 | . . . . . 4 . . 5 6 6 6 6 5 5 5 5 5 5 5 5 5 5 5 5 4 4 4 4 4 4 Processor 8 | . . 2 5 9 9 13 12 12 12 12 12 12 16 14 9 5 5 5 5 5 5 5 5 5 4 4 4 4 12 12 Hackware 5 | . . . . . . 12 18 17 12 12 12 12 11 11 11 11 11 11 11 11 10 10 10 10 8 9 8 8 3 . Protection 3 | . . . 10 9 4 . . . . . . . . 1 5 5 5 5 5 . . . . . . . . . . 4 Energy Gun 3 | . . 1 9 9 9 . . . . . . . . . . . . . . . . . . . . . . . . . Ballistic Gun 4 | . 27 26 10 9 8 . . . . . . . . . . . . . . . . . . . . . . . . . Impact Weapon 2 | . . 1 4 9 8 . . . . . . . . . . . . . . . . . . . . . . . . . Slashing Weapon 2 | . . . . . . 4 6 6 6 6 6 6 5 5 5 5 5 5 5 5 4 5 5 5 4 4 4 4 1 1 Special Melee Weapon 1 | . . . . . . 3 6 2 . . . . . 2 3 . . 4 4 4 5 5 4 5 2 . . . . . Peak Build Rating 301 | 5 5 16 33 33 40 102 84 85 80 78 78 83 96 103 103 90 93 94 96 111 112 110 134 137 164 187 198 202 286 301 Average Rating 109 | 3 4 7 25 33 33 84 84 81 78 78 78 78 88 99 96 85 85 93 93 102 110 110 120 133 144 181 196 198 234 269 On Entrance 95 | . 5 5 16 33 33 39 84 84 80 78 78 78 83 92 98 85 85 85 94 94 110 110 110 133 137 164 186 198 199 283 Avg Prop Armor Cover (%) 13 | 28 28 26 1 . 31 . . 15 . . . . 2 4 . . . 5 . 3 . 1 1 . . . . . 1 3 Naked Turns . | . . . . . . . . . . . . . . . . . . . . . . . . . . . . . . . Heaviest Build 108 | 3 3 14 35 30 38 27 16 29 29 20 20 20 31 40 43 48 39 39 42 43 41 37 53 53 65 77 77 76 105 108 Greatest Support 156 | 3 3 30 40 40 40 36 27 29 29 29 29 29 34 41 41 39 39 39 39 44 44 44 64 64 76 76 88 85 156 126 Greatest Overweight (x) 12 | . . . 9 . . 3 . 8 . . . . 8 1 1 1 1 12 1 . . . . . 1 1 1 . 2 1 Average Overweight (x) . | . . . . . . . . . . . . . . . . . . 3 . . . . . . . . . . . . Largest Inventory Capacity 25 | 5 5 5 5 5 15 15 5 10 10 10 10 10 10 10 10 10 10 10 10 10 10 10 10 10 15 15 15 15 25 25 Average Capacity 11 | 5 5 5 5 5 9 5 5 9 10 10 10 10 10 10 10 10 10 10 10 10 10 10 10 10 10 15 15 15 21 25 Most Carried 25 | 3 5 5 5 5 13 12 5 10 10 10 10 10 10 10 10 10 9 10 10 10 10 10 10 10 10 15 14 15 25 25 Average Carried 10 | 1 4 4 4 5 7 4 5 7 9 10 10 10 9 9 9 9 8 9 10 9 10 10 10 10 9 14 13 14 19 20 Final Capacity 25 | 5 5 5 5 5 15 5 5 10 10 10 10 10 10 10 10 10 10 10 10 10 10 10 10 10 15 15 15 15 25 25 Final Carried 25 | 3 5 4 5 5 12 5 5 9 10 10 10 10 10 10 10 9 9 10 10 10 10 10 10 10 10 15 13 15 25 19 Class Distribution -------------------- 21% | Derelict-Mutant 10% | Scavenger-Scout 9% | Subdweller-Mutant 9% | Hacker-Sprinter 9% | Hacker-Ninja 7% | Hacker-Scout 7% | Scavenger-Sprinter 5% | Scavenger-Ninja 3% | Scavenger-Mutant 3% | Hacker-Mutant 3% | Mutant Dominant Class ---------------- Mutant | -10/Materials Mutant | -10/Mines Subdweller-Mutant | -10/Subcaves Derelict-Mutant | -9/Recycling Derelict-Mutant | -9/Scraptown Hacker-Sprinter | -6/Factory Hacker-Sprinter | -6/Waste Hacker-Sprinter | -6/Factory Hacker-Sprinter | -6/Lower Caves Hacker-Sprinter | -6/Lower Caves Hacker-Sprinter | -6/Data Miner Hacker-Sprinter | -5/Proximity Caves Hacker-Ninja | -5/Factory Hacker-Scout | -5/Waste Hacker-Scout | -5/Factory Hacker-Scout | -5/Extension Commander-Scout | -5/Cetus Commander-Assassin | -5/Archives Scavenger-Scout | -5/Hub_04(d) Scavenger-Scout | -4/Factory Scavenger-Ninja | -4/Upper Caves Scavenger-Ninja | -4/Upper Caves Scavenger-Sprinter | -4/Warlord Scavenger-Sprinter | -3/Proximity Caves Hacker-Ninja | -3/Research Hacker-Sprinter | -3/Quarantine Hacker-Ninja | -2/Research Hacker-Ninja | -2/Testing Scavenger-Scout | -2/Protoforge Scavenger-Sprinter | -1/Access Resources | -11 -10 -10 -10 -9 -9 -6 -6 -6 -6 -6 -6 -5 -5 -5 -5 -5 -5 -5 -5 -4 -4 -4 -4 -3 -3 -3 -2 -2 -2 -1 ----------- Run | Yrd Mat Min Sub Rec Scr Fac Was Fac Low Low Dat Pro Fac Was Fac Ext Cet Arc Hub Fac Upp Upp War Pro Res Qua Res Tes Frg Acc Matter Collected 16302 | 258 61 105 653 18 . 1027 . 822 254 50 . 65 66 368 107 457 90 40 3 297 136 . . 68 287 190 . 35 9677 1168 Remotely 1424 | . . . . . . . . . . . . . . . . . . . . . . . . . . . . . 828 596 Salvage Created 28478 | 103 127 . 987 134 . 1383 . 653 135 . . . 66 205 168 688 39 180 . 187 55 . . . 714 110 . 79 12008 10457 Parts 1006 | 4 19 . 66 3 . 59 . 20 2 . . . 3 . 5 25 1 15 . 17 9 . . . 13 . . 3 567 175 Haulers Intercepted 10 | . . . . . . 3 . . . . . . . . 1 . . . . . . . . . 4 . . . . 2 Recyclers Shooed 5 | . . . . . . 3 . . . . . . . . . 1 . . . . . . . . 1 . . . . . Parts Field Recycled . | . . . . . . . . . . . . . . . . . . . . . . . . . . . . . . . Retrieved Matter . | . . . . . . . . . . . . . . . . . . . . . . . . . . . . . . . Parts Self-Destructed 26 | . . . 20 . . . . . 2 . . . . . . . . . . . 4 . . . . . . . . . Prevented 3 | . . . 3 . . . . . . . . . . . . . . . . . . . . . . . . . . . Parts Restored 6 | . . . . . . . . . . . . . . . . . . . . . . . . . . . . . 6 . Faulty 6 | . . . . . . . . . . . . . . . . . . . . . . . . . . . . . 6 . Kills | -11 -10 -10 -10 -9 -9 -6 -6 -6 -6 -6 -6 -5 -5 -5 -5 -5 -5 -5 -5 -4 -4 -4 -4 -3 -3 -3 -2 -2 -2 -1 ------- Run | Yrd Mat Min Sub Rec Scr Fac Was Fac Low Low Dat Pro Fac Was Fac Ext Cet Arc Hub Fac Upp Upp War Pro Res Qua Res Tes Frg Acc Combat Hostiles Destroyed 375 | . 3 . 27 1 . 12 . 6 . . . . 1 1 1 10 . . . 1 5 . . . 1 1 . . 165 140 Melee 145 | . . . . . . 8 . 6 . . . . 1 . 1 3 . . . . . . . . 1 1 . . 6 118 Guns 62 | . 3 . 18 1 . 4 . . . . . . . . . . . . . 1 . . . . . . . . 28 7 Cannons 137 | . . . 7 . . . . . . . . . . . . 5 . . . . . . . . . . . . 115 10 AOE 24 | . . . 1 . . . . . . . . . . 1 . 2 . . . . 5 . . . . . . . 15 . Classes Destroyed 32 | 2 3 . 4 . . 5 . . . . . . 1 1 . 1 . . . . . . . . 1 . . . 11 3 Worker 2 | . . . . . . . . . . . . . . . . . . . . . . . . . . . . . . 2 Builder 10 | . 2 . . 1 . . . . . . . . . . . 1 . . . 1 . . . . . . . . . 5 Tunneler 1 | 1 . . . . . . . . . . . . . . . . . . . . . . . . . . . . . . Hauler 10 | . . . . . . 3 . . . . . . . . 1 . . . . . . . . . 4 . . . . 2 Recycler 10 | 1 . . . 1 . 4 . 2 . . . . . . . 1 . . . . . . . . . . . . . 1 Mechanic 11 | . . . . . . 1 . . . . . . . . . . . . . 2 . . . . . . . . 5 3 Operator 12 | . . . . . . 5 . . . . . . 1 . . 1 . 5 . . . . . . . . . . . . Drone 13 | . . . . . . . . . . . . . 1 . . . . . . . . . . . . . . . 7 5 Turret 2 | . . . 2 . . . . . . . . . . . . . . . . . . . . . . . . . . . Watcher 14 | . . . . . . 1 . . . . . . 1 . . 1 1 . . 1 . . . . 5 . . 2 1 1 Swarmer 33 | . 1 . 9 . . 8 . . . . . . . . . . . . . . 5 . . . . . . . 10 . Saboteur 16 | . . . . . . . . . . . . . . . . . . . . . . . . . . . . . 5 11 Grunt 71 | . 2 . . . . 2 . 4 . . . . . . 1 8 . . . . . . . . . . . . 20 34 Brawler 14 | . . . . . . . . . . . . . . . . 1 . . . . . . . . . . . . 7 6 Duelist 13 | . . . . . . . . . . . . . . . . . . . . . . . . . . . . . 3 10 Protector 12 | . . . . . . . . . . . . . . . . . . . . . . . . . . . . . 6 6 Researcher 6 | . . . . . . . . . . . . . . . . . . . . . . . . . . . . . 6 . Sentry 23 | . . . 1 1 . 1 . 1 . . . . . . . 1 . . . . . . . . . . . . 12 6 Demolisher 1 | . . . . . . . . . . . . . . . . . . . . . . . . . . . . . . 1 Specialist 5 | . . . . . . . . . . . . . . . . . . . . . . . . . . . . . 3 2 Hunter 30 | . . . . . . . . . . . . . . . . . . . . . . . . . 1 . . . 18 11 Programmer 40 | . . . . . . 1 . 1 . . . . . . . . . . . 1 . . . . . . . . 16 21 Q-Series 2 | . . . . . . . . . . . . . . . . . . . . . . . . . . . . . . 2 Compactor 1 | . . . . . . . . . . . . . . 1 . . . . . . . . . . . . . . . . Hotshot 1 | . . . . . . . . . . . . . . . . . . . . . . . . . . . . . 1 . Decapitator 10 | . . . . . . . . . . . . . . . . . . . . . . . . . . . . . 10 . Immortal 2 | . . . . . . . . . . . . . . . . . . . . . . . . . . . . . 2 . Investigator 1 | . . . . . . . . . . . . . . . . . . . . . . . . . . . . . . 1 Striker 35 | . . . . . . . . . . . . . . . . . . . . . . . . . . . . . 17 18 Executioner 26 | . . . . . . . . . . . . . . . . . . . . . . . . . . . . . 19 7 Alpha 7 2 | . . . . . . . . . . . . . . . . . . . . . . . . . . . . . 2 . V-Series 6 | . . . . . . . . . . . . . . . . . . . . . . . . . . . . . 6 . Artisan 1 | . . . 1 . . . . . . . . . . . . . . . . . . . . . . . . . . . Subdweller 17 | . . . 17 . . . . . . . . . . . . . . . . . . . . . . . . . . . Scrapoid 1 | . . . . . . . . . . . . . . . . . . . . . . . . . . . . . 1 . Best Kill Streak 47 | 2 1 . 4 1 . 7 . 3 . . . . 1 1 1 3 1 4 . 3 5 . . . 2 1 . 1 34 47 Combat Bots Only 46 | . 1 . 4 1 . 6 . 3 . . . . 1 1 1 3 . . . 1 5 . . . 1 1 . . 32 46 Max Kills in Single Turn 4 | 1 1 . 1 1 . 1 . 1 . . . . 1 1 1 1 1 1 . 1 4 . . . 1 1 . 1 4 2 Gunslinging . | . . . . . . . . . . . . . . . . . . . . . . . . . . . . . . . Exploded 4 | . . . 1 . . . . . . . . . . 1 . 1 . . . . 4 . . . . . . . 4 . Melee 2 | . . . . . . 1 . 1 . . . . 1 . 1 1 . . . . . . . . 1 1 . . 1 2 Uniques/NPCs Destroyed 1 | . . . . . . . . . . . . . . . . . . . . . . . . . . 1 . . . . 6S-H0T (-3/Quarantine) Combat | -11 -10 -10 -10 -9 -9 -6 -6 -6 -6 -6 -6 -5 -5 -5 -5 -5 -5 -5 -5 -4 -4 -4 -4 -3 -3 -3 -2 -2 -2 -1 -------- Run | Yrd Mat Min Sub Rec Scr Fac Was Fac Low Low Dat Pro Fac Was Fac Ext Cet Arc Hub Fac Upp Upp War Pro Res Qua Res Tes Frg Acc Hostile Shots Fired 1958 | . 13 . 194 8 . 260 . 141 . 4 . 1 2 . 7 13 . . 5 12 2 4 . 3 9 18 8 4 252 998 Missed 861 | . 2 . 75 5 . 133 . 72 . 1 . 1 1 . 3 7 . . 1 7 . 3 . 1 5 9 3 . 145 387 Hits 1097 | . 11 . 119 3 . 127 . 69 . 3 . . 1 . 4 6 . . 4 5 2 1 . 2 4 9 5 4 107 611 Melee 25 | . . . . . . . . 3 . . . . . . . . . . . . . . . . . . . . . 22 Projectile 1072 | . 11 . 119 3 . 127 . 66 . 3 . . 1 . 4 6 . . 4 5 2 1 . 2 4 9 5 4 107 589 AOE 3 | . . . 1 . . 2 . . . . . . . . . . . . . . . . . . . . . . . . Critical Strikes 33 | . . . 6 . . 1 . 4 . . . . . . . . . . . . . . . . . 1 . . 5 16 Actively Blocked 21 | . . . . . . . . . . . . . . . . . . . . . . . . . . 1 . . 4 16 Part Disruptions 4 | . . . . . . . . . . . . . . . . . . . . . . . . . . . . . . 4 Damage Taken 15300 | . 140 . 1985 50 . 1396 . 674 . 48 . . 25 72 77 211 30 . 83 99 35 21 . 26 73 369 120 131 2435 7200 Core 1680 | . . . 202 . . 65 . 210 . 18 . . . 12 . 20 . . . 60 . . . . . 42 . . 431 620 Absorbed by Shields 3092 | . . . . . . 284 . 326 . . . . . . . . . . . . . . . . . . . . 540 1942 Ignored by Resistances 1353 | . . . . . . . . . . . . . . . . . . . . . . . . . . . . . 286 1067 Regen/Repaired (Parts) 3468 | . . . . . . 10 . . . . . . 80 86 19 . . . . 25 . . 5 . . 135 110 90 820 2088 Core Remaining (%) 72 | 100 . . . . 19 . . . . . . 65 . . . . . . 96 . . . . 94 . 96 . . 48 61 Volleys Fired 742 | 4 16 . 104 6 . 17 . 6 . . . . . 3 . 43 . . . 1 2 . . . . . . . 452 88 Largest 3 | 2 2 . 3 2 . 2 . 1 . . . . . 1 . 1 . . . 1 1 . . . . . . . 2 1 Hottest 140 | 40 40 . 120 75 . 30 . 115 . . . . . 36 . 48 . . . 70 36 . . . . . . . 140 140 Shots Fired 971 | 8 32 . 179 12 . 34 . 5 . . . . . 3 . 43 . . . 1 2 . . . . . . . 565 87 Gun 542 | 8 32 . 152 12 . 34 . . . . . . . . . . . . . 1 . . . . . . . . 272 31 Cannon 409 | . . . 27 . . . . 4 . . . . . . . 38 . . . . . . . . . . . . 284 56 Launcher 16 | . . . . . . . . . . . . . . 3 . 4 . . . . 2 . . . . . . . 7 . Special 4 | . . . . . . . . 1 . . . . . . . 1 . . . . . . . . . . . . 2 . Kinetic 507 | 8 32 . 92 6 . 34 . . . . . . . . . 38 . . . 1 . . . . . . . . 274 22 Thermal 355 | . . . 34 . . . . 4 . . . . . . . . . . . . . . . . . . . . 283 34 Explosive 15 | . . . . . . . . . . . . . . 3 . 4 . . . . 2 . . . . . . . 6 . Electromagnetic 59 | . . . 53 6 . . . . . . . . . . . . . . . . . . . . . . . . . . Entropic 31 | . . . . . . . . . . . . . . . . . . . . . . . . . . . . . . 31 Robot Hit Streak 50 | 4 7 . 17 8 . 3 . 2 . . . . . 2 . 5 . . . 4 . . . . . . . . 50 30 Robot Miss Streak 12 | 2 1 . 3 2 . 3 . 1 . . . . . . . 5 . . . 1 . . . . . . . . 12 2 Penetration Max 3 | . . . . . . . . . . . . . . . . 1 . . . . . . . . . . . . 3 2 Secondary Targets 6 | . . . 4 . . 2 . . . . . . . . . . . . . . . . . . . . . . . . Max Gunslinging Chain 1 | . . . 1 . . 1 . . . . . . . . . . . . . . . . . . . . . . . . Shots Hit Robots 1131 | 5 22 . 127 12 . 65 . 31 2 . . . 8 1 6 32 1 10 . 5 . . 7 . 31 5 . 2 331 428 Core Hits 1010 | 4 12 . 45 2 . 23 . 10 2 . . . 2 1 2 23 1 2 . 6 5 . . . 12 2 . 2 612 242 Critical Kills 141 | . . . 1 . . . . . . . . . . . . 5 . . . . . . . . . . . . 121 14 Critical Parts Destroyed 208 | . . . 2 . . . . . . . . . . . . 8 . . . . . . . . . . . . 168 30 Critical Strikes 582 | . . . 3 . . 5 . 4 . . . . . . . 14 . . . . . . . . 6 . . . 335 215 Meltdown 6 | . . . . . . . . . . . . . . . . . . . . . . . . . . . . . 1 5 Destroy 391 | . . . 3 . . . . . . . . . . . . 14 . . . . . . . . . . . . 330 44 Sever 18 | . . . . . . 5 . 4 . . . . . . . . . . . . . . . . 6 . . . 2 1 Impale 167 | . . . . . . . . . . . . . . . . . . . . . . . . . . . . . 2 165 Melee Attacks 1137 | . 3 5 78 8 . 129 . 54 6 14 . 4 24 . 13 13 3 13 6 30 10 2 7 4 86 29 19 18 87 472 Impact 95 | . 3 5 78 8 . 1 . . . . . . . . . . . . . . . . . . . . . . . . Slashing 584 | . . . . . . 127 . 54 6 14 . 4 23 . 13 13 3 9 6 30 10 2 . 4 85 29 19 18 63 52 Piercing 444 | . . . . . . . . . . . . . . . . . . . . . . . . . . . . . 24 420 Sneak Attacks 74 | . . . . 2 . 13 . 3 . . . . 6 . 2 2 . 8 . 3 . . 7 . 7 . . 2 8 11 Combat Hostiles 4 | . . . . . . 1 . 1 . . . . 1 . . . . . . . . . . . . . . . 1 . Follow-up Attacks 2 | . . . . . . . . . . . . . . . . . . . . . . . . . . . . . . 2 Martial Strikes 131 | . . . . . . . . . . . . . . . . . . . . . . . . . . . . . . 131 Damage Inflicted 60249 | 38 181 7 2543 274 . 3161 . 1435 192 . . . 477 476 325 1627 67 635 . 343 314 . . . 1956 521 . 384 18193 27100 Guns 10322 | 38 176 . 1872 162 . 316 . . . . . . . . . . . . . 56 . . . . . . . . 6317 1385 Cannons 6404 | . . . 591 . . . . 84 . . . . . . . 552 . . . . . . . . . . . . 3563 1614 Explosions 5457 | . . . 80 . . . . . . . . . . 476 . 540 . . . . 314 . . . . . . . 4047 . Melee 38054 | . . . . 112 . 2845 . 1351 192 . . . 477 . 325 535 67 635 . 287 . . . . 1956 521 . 384 4266 24101 Ramming 12 | . 5 7 . . . . . . . . . . . . . . . . . . . . . . . . . . . . Kinetic 5686 | 38 176 . 1237 84 . 316 . . . . . . . . . 552 . . . 56 . . . . . . . . 2854 373 Thermal 11326 | . . . 810 . . . . 84 . . . . . . . . . . . . . . . . . . . . 9191 1241 Explosive 3212 | . . . . . . . . . . . . . . 476 . 540 . . . . 314 . . . . . . . 1882 . Electromagnetic 574 | . . . 496 78 . . . . . . . . . . . . . . . . . . . . . . . . . . Impact 166 | . . . . 112 . 54 . . . . . . . . . . . . . . . . . . . . . . . . Slashing 15821 | . . . . . . 2791 . 1351 192 . . . 477 . 325 535 67 635 . 287 . . . . 1956 521 . 384 3797 2503 Piercing 22067 | . . . . . . . . . . . . . . . . . . . . . . . . . . . . . 469 21598 Entropic 1385 | . . . . . . . . . . . . . . . . . . . . . . . . . . . . . . 1385 Highest Corruption 31 | . . . . . . . 7 11 . . . . 1 1 3 2 . . . 1 1 1 1 . . . . . 2 31 Average Corruption 10 | . . . . . . . 7 8 . . . . 1 1 2 1 . . . 1 1 1 1 . . . . . 1 25 Corruption Purged 16 | . . . . . . . . 11 . . . . . . 3 2 . . . . . . . . . . . . . . Corruption Blocked 10 | . . . . . . . . . . . . . . . . . . . . . . . . . . . . . 10 . Effects 133 | . . . . . . . . 20 . . . . 5 2 5 3 . . . . 1 . . . . . . . 9 88 Message Errors 35 | . . . . . . . . 5 . . . . 1 . 2 1 . . . . 1 . . . . . . . 3 22 Matter Fused 26 | . . . . . . . . 5 . . . . 1 1 1 1 . . . . . . . . . . . . 2 15 Heat Flow Errors 23 | . . . . . . . . 4 . . . . 2 1 . 1 . . . . . . . . . . . . . 15 Energy Discharges 13 | . . . . . . . . . . . . . 1 . . . . . . . . . . . . . . . 1 11 Parts Rejected 1 | . . . . . . . . . . . . . . . . . . . . . . . . . . . . . 1 . Parts Fused 3 | . . . . . . . . 2 . . . . . . . . . . . . . . . . . . . . . 1 Data Loss (minor) 14 | . . . . . . . . 2 . . . . . . 2 . . . . . . . . . . . . . 1 9 Data Loss (major) 5 | . . . . . . . . 2 . . . . . . . . . . . . . . . . . . . . . 3 Misfires 1 | . . . . . . . . . . . . . . . . . . . . . . . . . . . . . . 1 Alerts 1 | . . . . . . . . . . . . . . . . . . . . . . . . . . . . . . 1 Misdirections 8 | . . . . . . . . . . . . . . . . . . . . . . . . . . . . . . 8 Weapon Failures 3 | . . . . . . . . . . . . . . . . . . . . . . . . . . . . . 1 2 Overload Shots . | . . . . . . . . . . . . . . . . . . . . . . . . . . . . . . . Overflow Damage 6301 | . . . . 42 . 396 . 127 . . . . 29 . 61 146 . 320 . . 6 . . . 221 97 . . 1305 3551 Projectiles 70 | . . . . . . . . . . . . . . . . . . . . . . . . . . . . . 70 . Explosions 146 | . . . . . . . . . . . . . . . . 13 . . . . 6 . . . . . . . 127 . Melee 6085 | . . . . 42 . 396 . 127 . . . . 29 . 61 133 . 320 . . . . . . 221 97 . . 1108 3551 Knockbacks 45 | . . . . 2 . . . . . . . . . . . 6 . . . . . . . . . . . . 15 22 Impact 2 | . . . . 2 . . . . . . . . . . . . . . . . . . . . . . . . . . Kinetic 43 | . . . . . . . . . . . . . . . . 6 . . . . . . . . . . . . 15 22 Secondary . | . . . . . . . . . . . . . . . . . . . . . . . . . . . . . . . Self-Inflicted Damage 79 | . . . 79 . . . . . . . . . . . . . . . . . . . . . . . . . . . Shots 2 | . . . 2 . . . . . . . . . . . . . . . . . . . . . . . . . . . Rammed 5 | . . 5 . . . . . . . . . . . . . . . . . . . . . . . . . . . . Targets Rammed 6 | . 1 5 . . . . . . . . . . . . . . . . . . . . . . . . . . . . Kicked . | . . . . . . . . . . . . . . . . . . . . . . . . . . . . . . . Crushed 1 | . 1 . . . . . . . . . . . . . . . . . . . . . . . . . . . . . Highest Temperature 416 | . 4 . 305 24 . 6 13 356 30 24 10 15 228 102 98 199 30 10 25 266 290 235 145 72 257 275 112 284 236 416 Average Temperature 68 | . 2 . 107 18 . 2 4 47 12 9 7 7 121 15 30 20 11 4 7 85 132 158 57 28 55 85 30 64 70 87 Received Heat Transfer 2166 | . 60 . 1060 . . 234 . 195 . 9 . . . . 36 54 . . 9 18 . 12 . . . . 18 18 117 326 Effects 13 | . . . 2 . . . . 2 . . . . . . . . . . . 2 4 . . . 2 1 . . . . Energy Bleed 2 | . . . . . . . . . . . . . . . . . . . . 1 . . . . . 1 . . . . Interference 11 | . . . 2 . . . . 2 . . . . . . . . . . . 1 4 . . . 2 . . . . . Siege Activations . | . . . . . . . . . . . . . . . . . . . . . . . . . . . . . . . Martial Activations . | . . . . . . . . . . . . . . . . . . . . . . . . . . . . . . . Shielding Activations . | . . . . . . . . . . . . . . . . . . . . . . . . . . . . . . . Robots Disrupted . | . . . . . . . . . . . . . . . . . . . . . . . . . . . . . . . Combat Hostiles . | . . . . . . . . . . . . . . . . . . . . . . . . . . . . . . . Robots Corrupted 3 | . . . 1 2 . . . . . . . . . . . . . . . . . . . . . . . . . . Combat Hostiles 1 | . . . 1 . . . . . . . . . . . . . . . . . . . . . . . . . . . Parts Fried 5 | . . . 1 4 . . . . . . . . . . . . . . . . . . . . . . . . . . Impact Corruptions 3 | . . . . 3 . . . . . . . . . . . . . . . . . . . . . . . . . . Robots Melted 6 | . . . . . . . . . . . . . . . . . . . . . . . . . . . . . 1 5 Combat Hostiles 6 | . . . . . . . . . . . . . . . . . . . . . . . . . . . . . 1 5 Parts Melted 11 | . . . 3 . . . . . . . . . . . . . . . . . . . . . . . . . 1 7 Heat Transferred 12102 | . . . 1052 . . . . 100 . . . . . . . . . . . . . . . . . . . . 10200 750 Parts Sabotaged 2 | . . . . . . . . . . . . . . . . . . . . . . . . . . . . . . 2 Parts Stolen . | . . . . . . . . . . . . . . . . . . . . . . . . . . . . . . . Parts Stripped . | . . . . . . . . . . . . . . . . . . . . . . . . . . . . . . . Power Chain Reactions 2 | . . . 2 . . . . . . . . . . . . . . . . . . . . . . . . . . . Alert | -11 -10 -10 -10 -9 -9 -6 -6 -6 -6 -6 -6 -5 -5 -5 -5 -5 -5 -5 -5 -4 -4 -4 -4 -3 -3 -3 -2 -2 -2 -1 ------- Run | Yrd Mat Min Sub Rec Scr Fac Was Fac Low Low Dat Pro Fac Was Fac Ext Cet Arc Hub Fac Upp Upp War Pro Res Qua Res Tes Frg Acc Maximum Alert Level 5 | . . . . 1 . 3 . 3 . . . . . . . 2 1 1 1 1 . . . . 1 . 1 1 5 5 Low Security (%) 34 | 100 100 100 . 16 . 14 100 19 . . . . 100 100 100 38 . 54 32 50 . . . . 66 100 47 57 12 . Level 1 21 | . . . . 83 . 11 . 8 . . . . . . . 47 100 45 67 49 . . . . 33 . 52 42 10 . Level 2 10 | . . . . . . 58 . 11 . . . . . . . 13 . . . . . . . . . . . . 3 . Level 3 5 | . . . . . . 15 . 60 . . . . . . . . . . . . . . . . . . . . 2 . Level 4 . | . . . . . . . . . . . . . . . . . . . . . . . . . . . . . . . Level 5 19 | . . . . . . . . . . . . . . . . . . . . . . . . . . . . . 71 17 High Security 9 | . . . . . . . . . . . . . . . . . . . . . . . . . . . . . . 82 Max Security . | . . . . . . . . . . . . . . . . . . . . . . . . . . . . . . . Peak Influence 8493 | 10 86 53 . 374 . 782 179 1016 . . . . 41 40 122 447 389 318 306 328 . . . . 331 144 233 266 7395 8493 Initial 4432 | . . 25 . 344 . . 149 125 . . . . . . . 30 235 143 19 117 . . . . . . 81 120 29 4432 Average 1772 | 2 39 16 . 258 . 492 162 628 . . . . 7 5 58 244 312 193 197 197 . . . . 117 49 173 154 3833 6004 Influence Increases 22458 | 10 267 84 1003 193 . 1527 30 1423 10 210 . . 173 84 279 919 334 235 451 475 110 45 . . 734 394 273 362 8322 4511 Destroy 0b10 Robot/C 8160 | . 60 40 260 20 . 240 . 280 . . . . . . 80 460 160 80 240 20 100 . . . 20 . . . 3380 2720 Destroy 0b10 Robot/NC 485 | 10 10 . . 10 . 70 . 15 10 . . . 15 . 5 30 10 25 . 20 . . . . 45 . . 10 100 100 Destroy Leader 1128 | . 20 10 20 . . 56 . 60 . . . . 2 . 22 46 . . 40 12 10 . . . 18 . . 4 432 376 Allied During Kill 628 | . . 3 3 . . . . 19 . . . . . . 65 169 137 105 38 . . . . . . . . . 63 26 Trap Triggered on 0b10 30 | . . . . . . . . . . . . . . . . . . . . . . . . . . 10 . . 20 . Successful Hack 1203 | . 25 . . 40 . 118 . 53 . . . . 40 . 20 8 4 . 26 75 . . . . 262 113 90 132 197 . Select Force Hacks 180 | . 60 . . 120 . . . . . . . . . . . . . . . . . . . . . . . . . . Disable Machine 855 | . . . . . . 60 . 15 . . . . . . . 30 15 15 60 15 . . . . 15 105 . 45 435 45 Anti-Garrison Action 750 | . . . . . . . . 200 . . . . . . . . . . . . . . . . 200 . . . 200 150 Destroy Structure 3354 | . 2 1 . 3 . 68 . 46 . . . . 26 84 42 116 8 10 32 48 . . . . 84 16 48 36 2445 239 Partial Spotted 735 | . 15 . . . . 150 30 90 . . . . 30 . . 60 . . 15 30 . . . . 45 30 30 15 180 15 Lose Combat Pursuer 4950 | . 75 30 720 . . 765 . 645 . 210 . . 60 . 45 . . . . 255 . 45 . . 45 120 105 120 870 840 Influence Decreases 13965 | 10 200 151 285 760 151 1100 278 586 437 162 637 . 173 84 216 561 396 538 267 395 279 80 116 . 734 250 203 523 987 3406 Entered New Map 6022 | . . 42 . 374 151 . 278 54 377 112 637 . . . . 33 186 216 37 123 119 30 116 . . . 63 94 24 2956 Time Decay 5599 | 10 200 109 265 386 . 590 . 362 60 50 . . 163 44 182 368 160 302 60 262 160 50 . . 353 240 140 170 753 160 Search Patrol Dispatched 600 | . . . . . . 400 . 100 . . . . . . . . . . . . . . . . . . . . 100 . Lost Part 490 | . . . 20 . . 100 . 40 . . . . . . 20 . . . . . . . . . 10 . . . 50 250 Lost Ally 644 | . . . . . . 10 . 30 . . . . 10 40 14 160 50 20 170 10 . . . . 20 10 . . 60 40 Purge Threat 610 | . . . . . . . . . . . . . . . . . . . . . . . . . 351 . . 259 . . Squads Dispatched 171 | . 4 . . . . 20 . 12 . . . . 8 . 6 . . . 4 11 . . . . 11 3 5 3 12 72 Investigation 67 | . 2 . . . . 12 . 11 . . . . 7 . 3 . . . 2 9 . . . . 10 1 4 1 5 . Extermination 17 | . . . . . . 5 . 1 . . . . 1 . 1 . . . . 1 . . . . . 1 1 2 3 1 Reinforcement 18 | . 2 . . . . 2 . . . . . . . . 2 . . . 2 1 . . . . 1 1 . . 4 3 Assault 63 | . . . . . . 1 . . . . . . . . . . . . . . . . . . . . . . . 62 Garrison 6 | . . . . . . . . . . . . . . . . . . . . . . . . . . . . . . 6 Intercept . | . . . . . . . . . . . . . . . . . . . . . . . . . . . . . . . Searches Triggered 6 | . . . . . . 4 . 1 . . . . . . . . . . . . . . . . . . . . 1 . Unchained Authorized 3 | . . . . . . . . . . . . . . . . . . . . 1 . . . . . 1 . 1 . . Data Miner Redirects 1 | . . . . . . . . . . . . . 1 . . . . . . . . . . . . . . . . . Construction Impeded 2 | . . . . . . . . . . . . . . . 1 . . . . . . . . . . . . . . 1 Haulers Reinforced 2 | . . . . . . . . . . . . . . . 1 . . . . . . . . . 1 . . . . . Active Scanning Responses . | . . . . . . . . . . . . . . . . . . . . . . . . . . . . . . . Cargo Convoy Interrupts 1 | . . . . . . . . 1 . . . . . . . . . . . . . . . . . . . . . . Stealth | -11 -10 -10 -10 -9 -9 -6 -6 -6 -6 -6 -6 -5 -5 -5 -5 -5 -5 -5 -5 -4 -4 -4 -4 -3 -3 -3 -2 -2 -2 -1 --------- Run | Yrd Mat Min Sub Rec Scr Fac Was Fac Low Low Dat Pro Fac Was Fac Ext Cet Arc Hub Fac Upp Upp War Pro Res Qua Res Tes Frg Acc Distress Signals 36 | . 3 . . . . 5 . 2 . . . . . . . . 2 . 2 1 . . . . 7 . 1 . 8 5 Communications Jammed . | . . . . . . . . . . . . . . . . . . . . . . . . . . . . . . . Distress Signals . | . . . . . . . . . . . . . . . . . . . . . . . . . . . . . . . Times Spotted 889 | . 17 2 66 1 . 77 3 67 . 9 . 4 7 13 8 25 11 6 7 22 5 3 . 4 16 17 12 8 260 219 Peak Tracking Total 22 | . 5 2 6 1 . 9 3 15 . 13 . 4 2 6 4 4 5 . 7 8 5 3 . 4 4 10 8 5 17 22 Tactical Retreats 125 | . 4 1 8 . . 26 . 11 . 4 . . 3 2 1 . . . . 5 . 1 . . 1 2 3 3 27 23 ECM-based Alert Blocks 19 | . . . . . . . . . . . . . . . . . . . . . . . . . . . 1 . 18 . Traps | -11 -10 -10 -10 -9 -9 -6 -6 -6 -6 -6 -6 -5 -5 -5 -5 -5 -5 -5 -5 -4 -4 -4 -4 -3 -3 -3 -2 -2 -2 -1 ------- Run | Yrd Mat Min Sub Rec Scr Fac Was Fac Low Low Dat Pro Fac Was Fac Ext Cet Arc Hub Fac Upp Upp War Pro Res Qua Res Tes Frg Acc Traps Triggered 25 | . . . 1 . . 1 . 3 . . . . 1 . 1 . . . . 2 . . . . . . . . 16 . Indirectly . | . . . . . . . . . . . . . . . . . . . . . . . . . . . . . . . Trap Hack Attempts 62 | . . . . . . . . . . . . . . . 10 19 . . 3 . . . . . 30 . . . . . Triggered . | . . . . . . . . . . . . . . . . . . . . . . . . . . . . . . . Disarmed 6 | . . . . . . . . . . . . . . . . . . . . . . . . . 6 . . . . . Reprogrammed 16 | . . . . . . . . . . . . . . . 2 4 . . 1 . . . . . 5 4 . . . . Reused 7 | . . . . . . . . . . . . . . . . . . . . 2 . . . . . 3 . . 2 . Traps Extracted 16 | . . . . . . . . . . . . . . . 2 . . . 1 2 . . . . 5 6 . . . . Installed 16 | . . . . . . . . . . . . . . . . . . . . 4 . . . . 1 5 . . 6 . Triggered 3 | . . . . . . . . . . . . . . . . . . . . . . . . . . 1 . . 2 . Most Traps Carried 6 | . . . . . . . . . . . . . . . 2 2 2 2 3 3 1 1 1 1 5 6 6 6 6 . Machines | -11 -10 -10 -10 -9 -9 -6 -6 -6 -6 -6 -6 -5 -5 -5 -5 -5 -5 -5 -5 -4 -4 -4 -4 -3 -3 -3 -2 -2 -2 -1 ---------- Run | Yrd Mat Min Sub Rec Scr Fac Was Fac Low Low Dat Pro Fac Was Fac Ext Cet Arc Hub Fac Upp Upp War Pro Res Qua Res Tes Frg Acc Machines Disabled 72 | . . . 3 . . 4 . 1 . . . . . . . 5 1 1 4 1 . . . . 1 7 . 3 37 4 Max in Single Turn 8 | . . . 1 . . 1 . 1 . . . . . . . 1 1 . 1 1 . . . . 1 1 . 1 8 1 Garrison Access 13 | . . . . . . 2 . 2 . . . . 1 . . . . . . 1 . . . . 3 . 1 1 1 1 Network Hub 1 | . . . . . . . . . . . . . . . . . . . 1 . . . . . . . . . . . Machines Repaired . | . . . . . . . . . . . . . . . . . . . . . . . . . . . . . . . Machines Dismantled 3 | . . . . . . . . . . . . . . . . 1 1 . 1 . . . . . . . . . . . Machines Sabotaged . | . . . . . . . . . . . . . . . . . . . . . . . . . . . . . . . Overloaded Fab Kills . | . . . . . . . . . . . . . . . . . . . . . . . . . . . . . . . Hacking | -11 -10 -10 -10 -9 -9 -6 -6 -6 -6 -6 -6 -5 -5 -5 -5 -5 -5 -5 -5 -4 -4 -4 -4 -3 -3 -3 -2 -2 -2 -1 --------- Run | Yrd Mat Min Sub Rec Scr Fac Was Fac Low Low Dat Pro Fac Was Fac Ext Cet Arc Hub Fac Upp Upp War Pro Res Qua Res Tes Frg Acc Machines Accessed 224 | . 8 . 2 10 2 35 . 21 1 1 4 . 14 . 8 3 2 . 4 21 1 1 6 . 29 11 8 14 18 . Terminals 114 | . 6 . . 6 . 15 . 11 . . . . 7 . 3 3 2 . 4 11 . . . . 14 10 3 9 10 . Fabricators 18 | . . . . . . 5 . 2 . . . . . . 1 . . . . 1 . . . . 3 . 1 1 4 . Repair Stations 10 | . . . . . . 3 . 1 . . . . 2 . . . . . . 2 . . . . . . 1 1 . . Recycling Units 40 | . 2 . . 4 . 8 . 5 . . . . 4 . 3 . . . . 5 . . . . 4 . 2 . 3 . Scanalyzers 11 | . . . . . . 2 . . . . . . . . 1 . . . . . . . . . 5 1 . 2 . . Garrison Access 13 | . . . . . . 2 . 2 . . . . 1 . . . . . . 2 . . . . 3 . 1 1 1 . Total Hacks 746 | . 25 . 6 20 18 107 . 76 1 1 29 . 31 . 14 6 7 . 9 82 1 1 15 . 121 45 31 47 53 . Successful 464 | . 17 . 6 12 18 65 . 46 1 1 29 . 21 . 8 1 4 . 2 51 1 1 15 . 65 26 20 26 28 . Failed 280 | . 8 . . 8 . 41 . 29 . . . . 10 . 6 5 3 . 7 31 . . . . 56 19 11 21 25 . Catastrophic 36 | . 1 . . 2 . 8 . 2 . . . . 1 . . 1 . . . 2 . . . . 6 6 . 2 5 . Database Lockouts 2 | . . . . . . 1 . 1 . . . . . . . . . . . . . . . . . . . . . . Manual 421 | . 22 . . 18 . 57 . 36 . . . . 26 . 5 6 1 . 9 47 . . 1 . 73 31 19 26 44 . Terminals 455 | . 23 . . 15 . 54 . 54 . . . . 19 . 5 6 7 . 9 58 . . . . 82 38 17 32 36 . Fabricators 51 | . . . . . . 13 . 9 . . . . . . 3 . . . . 3 . . . . 6 . 4 3 10 . Repair Stations 22 | . . . . . . 3 . 2 . . . . 4 . . . . . . 5 . . . . . . 4 4 . . Recycling Units 63 | . 2 . . 5 . 12 . 6 . . . . 7 . 3 . . . . 11 . . . . 8 . 4 . 5 . Scanalyzers 58 | . . . . . . 22 . . . . . . . . 3 . . . . . . . . . 20 7 . 6 . . Garrison Access 25 | . . . . . . 3 . 5 . . . . 1 . . . . . . 5 . . . . 5 . 2 2 2 . Terminal Hacks 173 | . 6 . 6 2 18 11 . 15 1 1 29 . 1 . 2 . 4 . . 16 1 1 15 . 20 8 4 7 5 . Record 52 | . . . 5 . 18 . . . . . 11 . . . . . 4 . . . . . 14 . . . . . . . Part Schematic 23 | . 1 . . 1 . 2 . 3 . . 11 . . . . . . . . 3 . . . . 1 . . 1 . . Robot Schematic 4 | . . . . . . . . . . . 4 . . . . . . . . . . . . . . . . . . . Robot Analysis 10 | . 2 . . 1 . 2 . 4 . . . . . . . . . . . . . . . . 1 . . . . . Prototype ID Bank 17 | . 2 . . . . 2 . 2 . . 3 . . . . . . . . 1 . . . . 3 2 . 1 1 . Open Door 7 | . . . . . . . . . 1 1 . . . . 1 . . . . . 1 1 1 . . 1 . . . . Level Access Points 2 | . . . . . . . . . . . . . . . . . . . . . . . . . . 2 . . . . Branch Access Points 4 | . . . . . . . . 1 . . . . . . . . . . . 1 . . . . 1 . 1 . . . Terminal Index 4 | . . . . . . . . . . . . . . . . . . . . 1 . . . . 1 . 1 1 . . Fabricator Index 1 | . . . . . . . . . . . . . . . . . . . . . . . . . 1 . . . . . Scanalyzer Index 3 | . . . . . . 1 . 1 . . . . . . . . . . . . . . . . . . . 1 . . Garrison Index 1 | . . . . . . . . 1 . . . . . . . . . . . . . . . . . . . . . . Alert Level 3 | . . . . . . 1 . . . . . . . . . . . . . 1 . . . . 1 . . . . . Unreport Threat 5 | . . . . . . . . . . . . . . . . . . . . . . . . . 3 . . 2 . . Locate Traps 9 | . . . . . . . . . . . . . . . 1 . . . . 2 . . . . 5 . . . 1 . Disarm Traps 2 | . . . . . . . . 1 . . . . . . . . . . . . . . . . 1 . . . . . Reprogram Traps 1 | . . . . . . . . . . . . . . . . . . . . . . . . . . 1 . . . . Recall Investigation 1 | . . . . . . . . . . . . . . . . . . . . . . . . . . . 1 . . . Recall Extermination 5 | . . . . . . 2 . . . . . . . . . . . . . 1 . . . . . . . 1 1 . Recall Reinforcements 1 | . . . . . . . . . . . . . . . . . . . . . . . . . . . . . 1 . Hauler Manifests 1 | . . . . . . . . . . . . . . . . . . . . 1 . . . . . . . . . . Registered Components 1 | . . . . . . . . . . . . . . . . . . . . 1 . . . . . . . . . . Registered Prototypes 1 | . . . . . . . . . . . . . . . . . . . . . . . . . 1 . . . . . Zone Layout 14 | . 1 . . . . 1 . 2 . . . . 1 . . . . . . 4 . . . . 1 2 1 . 1 . Proto ID Catalog 1 | . . . 1 . . . . . . . . . . . . . . . . . . . . . . . . . . . Fabricator Hacks 24 | . . . . . . 4 . 7 . . . . . . 1 . . . . 2 . . . . 4 . 2 2 2 . Network Status 7 | . . . . . . 2 . 1 . . . . . . 1 . . . . 1 . . . . . . 1 1 . . Load Schematic 11 | . . . . . . 2 . 3 . . . . . . . . . . . 1 . . . . 2 . 1 1 1 . Build 6 | . . . . . . . . 3 . . . . . . . . . . . . . . . . 2 . . . 1 . Repair Station Hacks 14 | . . . . . . 1 . 2 . . . . 2 . . . . . . 3 . . . . . . 3 3 . . Scan Component 7 | . . . . . . . . 1 . . . . 1 . . . . . . 1 . . . . . . 2 2 . . Repair 5 | . . . . . . . . 1 . . . . 1 . . . . . . 1 . . . . . . 1 1 . . Refit 2 | . . . . . . 1 . . . . . . . . . . . . . 1 . . . . . . . . . . Recycling Unit Hacks 2 | . . . . . . . . . . . . . . . . . . . . 2 . . . . . . . . . . Process 1 | . . . . . . . . . . . . . . . . . . . . 1 . . . . . . . . . . Retrieve Matter 1 | . . . . . . . . . . . . . . . . . . . . 1 . . . . . . . . . . Scanalyzer 43 | . . . . . . 19 . . . . . . . . 2 . . . . . . . . . 13 5 . 4 . . Insert Component 21 | . . . . . . 7 . . . . . . . . . . . . . . . . . . 7 5 . 2 . . Analyze 14 | . . . . . . 7 . . . . . . . . . . . . . . . . . . 5 . . 2 . . Retrieve Study 8 | . . . . . . 5 . . . . . . . . 2 . . . . . . . . . 1 . . . . . Garrison Access Hacks 9 | . . . . . . 2 . 1 . . . . 1 . . . . . . 1 . . . . 2 . 1 1 . . Seal Access 9 | . . . . . . 2 . 1 . . . . 1 . . . . . . 1 . . . . 2 . 1 1 . . Unauthorized Hacks 199 | . 11 . . 10 . 28 . 21 . . . . 17 . 3 1 . . 2 27 . . . . 26 13 10 9 21 . Terminals 143 | . 9 . . 6 . 16 . 14 . . . . 11 . . 1 . . 2 20 . . . . 22 13 7 8 14 . Track 26 | . 1 . . . . . . 3 . . . . 2 . . . . . 1 5 . . . . 5 2 2 1 4 . Assimilate 15 | . . . . . . 1 . 1 . . . . 1 . . . . . 1 4 . . . . 3 2 . . 2 . Botnet 32 | . 3 . . 1 . 4 . 3 . . . . 3 . . . . . . 4 . . . . 8 . 2 2 2 . Disrupt 6 | . . . . . . 1 . . . . . . . . . . . . . 1 . . . . . 3 . . 1 . Operators 3 | . . . . . . . . 1 . . . . . . . . . . . 1 . . . . 1 . . . . . Skim 61 | . 5 . . 5 . 10 . 6 . . . . 5 . . 1 . . . 5 . . . . 5 6 3 5 5 . Fabricators 9 | . . . . . . 2 . 1 . . . . . . . . . . . 1 . . . . . . 1 1 3 . Prioritize 2 | . . . . . . . . 1 . . . . . . . . . . . . . . . . . . . . 1 . Fabnet 2 | . . . . . . . . . . . . . . . . . . . . . . . . . . . . . 2 . Recompile 5 | . . . . . . 2 . . . . . . . . . . . . . 1 . . . . . . 1 1 . . Repair Stations 5 | . . . . . . 2 . . . . . . 2 . . . . . . 1 . . . . . . . . . . Patch 5 | . . . . . . 2 . . . . . . 2 . . . . . . 1 . . . . . . . . . . Recycling Units 39 | . 2 . . 4 . 8 . 5 . . . . 4 . 3 . . . . 5 . . . . 3 . 2 . 3 . Tunnel 6 | . 2 . . 4 . . . . . . . . . . . . . . . . . . . . . . . . . . Fedlink 30 | . . . . . . 8 . 4 . . . . 4 . 3 . . . . 5 . . . . 3 . 2 . 1 . Scraphulk 3 | . . . . . . . . 1 . . . . . . . . . . . . . . . . . . . . 2 . Scanalyzers . | . . . . . . . . . . . . . . . . . . . . . . . . . . . . . . . Garrison Access 3 | . . . . . . . . 1 . . . . . . . . . . . . . . . . 1 . . . 1 . Jam 3 | . . . . . . . . 1 . . . . . . . . . . . . . . . . 1 . . . 1 . Data Cores Recovered 4 | . . . . . . 3 . . . . . . 1 . . . . . . . . . . . . . . . . . Used 2 | . . . . . . 1 . . . . . . 1 . . . . . . . . . . . . . . . . . Hacking Detections 148 | . 6 . . 7 . 20 . 15 . . . . 8 . 4 3 3 . 4 15 . . . . 21 9 5 13 15 . Full Trace Events 15 | . . . . . . . . 4 . . . . 1 . . . . . 2 2 . . . . 3 1 1 . 1 . Feedback Events 3 | . . . . . . . . 1 . . . . 1 . . . . . . . . . . . 1 . . . . . Corruption 2 | . . . . . . . . 1 . . . . 1 . . . . . . . . . . . . . . . . . Hackware Fried 1 | . . . . . . . . . . . . . . . . . . . . . . . . . 1 . . . . . Feedback Blocked . | . . . . . . . . . . . . . . . . . . . . . . . . . . . . . . . Robot Schematics Acquired 12 | . . . . . . . . . . . 4 . . . . . . . . . . . . . . . . . 8 . Robots Built . | . . . . . . . . . . . . . . . . . . . . . . . . . . . . . . . Authchips . | . . . . . . . . . . . . . . . . . . . . . . . . . . . . . . . Time . | . . . . . . . . . . . . . . . . . . . . . . . . . . . . . . . Total Robot Build Rating . | . . . . . . . . . . . . . . . . . . . . . . . . . . . . . . . Part Schematics Acquired 47 | . 1 . . 1 . 8 . 3 . . 11 . . . . . . . . 3 . . . . 6 . . 2 12 . Parts Built 9 | . . . . . . . . 6 . . . . . . . . . . . . . . . . 2 . . . 1 . Authchips 3 | . . . . . . . . 2 . . . . . . . . . . . . . . . . . . . . 1 . Time 303 | . . . . . . . . 102 . . . . . . . . . . . . . . . . 127 . . . 74 . Total Part Build Rating 54 | . . . . . . . . 36 . . . . . . . . . . . . . . . . 9 . . . 9 . Part Studies Acquired 8 | . . . . . . 5 . . . . . . . . 2 . . . . . . . . . 1 . . . . . Parts Repaired 5 | . . . . . . . . 1 . . . . 1 . . . . . . 1 . . . . . . 1 1 . . Time 219 | . . . . . . . . 17 . . . . 80 . . . . . . 37 . . . . . . 45 40 . . Parts Recycled . | . . . . . . . . . . . . . . . . . . . . . . . . . . . . . . . Recycled Matter 15 | . . . . . . . . . . . . . . . . . . . . 15 . . . . . . . . . . Retrieved Matter 15 | . . . . . . . . . . . . . . . . . . . . 15 . . . . . . . . . . Retrieved Components . | . . . . . . . . . . . . . . . . . . . . . . . . . . . . . . . Parts Scanalyzed 13 | . . . . . . 6 . . . . . . . . . . . . . . . . . . 6 . . 1 . . Part Schematics Acquired 12 | . . . . . . 6 . . . . . . . . . . . . . . . . . . 5 . . 1 . . Parts Damaged 5 | . . . . . . 4 . . . . . . . . . . . . . . . . . . 1 . . . . . Bothacking | -11 -10 -10 -10 -9 -9 -6 -6 -6 -6 -6 -6 -5 -5 -5 -5 -5 -5 -5 -5 -4 -4 -4 -4 -3 -3 -3 -2 -2 -2 -1 ------------ Run | Yrd Mat Min Sub Rec Scr Fac Was Fac Low Low Dat Pro Fac Was Fac Ext Cet Arc Hub Fac Upp Upp War Pro Res Qua Res Tes Frg Acc Used RIF Installer . | . . . . . . . . . . . . . . . . . . . . . . . . . . . . . . . Robots Hacked 10 | . . . . . . . . . . . . . 1 . . . . 3 . . . . . . . . . . . 6 Non-combat 4 | . . . . . . . . . . . . . 1 . . . . 3 . . . . . . . . . . . . Combat 6 | . . . . . . . . . . . . . . . . . . . . . . . . . . . . . . 6 Robot Hacks Applied 4 | . . . . . . . . . . . . . 1 . . . . 3 . . . . . . . . . . . . find_recycling 1 | . . . . . . . . . . . . . 1 . . . . . . . . . . . . . . . . . check_alert 3 | . . . . . . . . . . . . . . . . . . 3 . . . . . . . . . . . . Relay Couplers Released 3 | . . . . . . . . . . . . . . . . . . . . . . . . . . . . 1 . 2 Machine Destruction 3 | . . . . . . . . . . . . . . . . . . . . . . . . . . . . 1 . 2 Fabnet Peak Effective % 6 | . . . . . . . . . . . . . . . . . . . . . . . . . . . . . . 6 Autooverrided 6 | . . . . . . . . . . . . . . . . . . . . . . . . . . . . . . 6 Robots Rewired 12 | . . . . . . . . . . . . . . . . 7 . . . . . . 5 . . . . . . . Allies Hacked . | . . . . . . . . . . . . . . . . . . . . . . . . . . . . . . . Hacks Repelled . | . . . . . . . . . . . . . . . . . . . . . . . . . . . . . . . Allies | -11 -10 -10 -10 -9 -9 -6 -6 -6 -6 -6 -6 -5 -5 -5 -5 -5 -5 -5 -5 -4 -4 -4 -4 -3 -3 -3 -2 -2 -2 -1 -------- Run | Yrd Mat Min Sub Rec Scr Fac Was Fac Low Low Dat Pro Fac Was Fac Ext Cet Arc Hub Fac Upp Upp War Pro Res Qua Res Tes Frg Acc Total Allies 62 | . . 1 . . . 1 . 2 . . . . 1 19 . 13 5 . 1 1 . . 5 . 2 1 . . 4 6 Largest Group 19 | . . 1 1 . . 1 . 1 . . . . 1 19 12 9 12 10 9 1 . . 5 . 2 1 . . 2 1 Highest-Rated Group 823 | . . 31 31 . . 26 . 123 . . . . 26 702 501 388 823 697 535 45 . . 275 . 55 26 . . 278 219 Highest-Rated Ally 219 | . . 31 31 . . 26 . 123 . . . . 26 50 50 159 159 159 96 45 . . 64 . 45 26 . . 139 219 Total Orders 7 | . . . . . . . . . . . . . . . . . . 2 . . . . 1 . 2 . . . 2 . STAY 2 | . . . . . . . . . . . . . . . . . . . . . . . . . 1 . . . 1 . ROAM 1 | . . . . . . . . . . . . . . . . . . 1 . . . . . . . . . . . . FOLLOW 3 | . . . . . . . . . . . . . . . . . . 1 . . . . . . 1 . . . 1 . GUARD 1 | . . . . . . . . . . . . . . . . . . . . . . . 1 . . . . . . . Ally Attacks 556 | . . 3 20 . . . . 22 . . . . . 150 31 121 61 23 64 . . . . . . . . . 48 13 Total Damage 18752 | . . 62 378 . . . . 827 . . . . . 5919 690 2943 1749 585 1507 . . . . . . . . . 2261 1831 Kills 79 | . . 2 3 . . . . 9 . . . . . 10 3 18 9 4 12 . . . . . . . . . 8 1 Allies Corrupted 1 | . . . . . . . . . . . . . . . . . . . 1 . . . . . . . . . . . Allies Melted 1 | . . . . . . . . . . . . . . . . . . . . . . . . . . . . . 1 . Intel | -11 -10 -10 -10 -9 -9 -6 -6 -6 -6 -6 -6 -5 -5 -5 -5 -5 -5 -5 -5 -4 -4 -4 -4 -3 -3 -3 -2 -2 -2 -1 ------- Run | Yrd Mat Min Sub Rec Scr Fac Was Fac Low Low Dat Pro Fac Was Fac Ext Cet Arc Hub Fac Upp Upp War Pro Res Qua Res Tes Frg Acc Active Infowar (turns) 17295 | 4 466 268 40 . 711 2293 16 624 121 100 19 105 528 295 387 845 323 664 127 575 327 108 264 71 935 539 286 348 4042 1864 Optics 5168 | . . . 36 . . . . . . . . . . . . . . . . . . . . . . . . . 3269 1863 Sensors 14107 | . . 2 . . 711 2277 16 624 121 100 19 105 520 295 387 845 323 664 127 575 327 108 264 71 935 539 286 348 3518 . A.S.S. 1 | . . . . . . . . . . . . . . . . . . . . . . . . . . . . . . 1 IFF 570 | . . . . . . . . . . . . . . . . . . . . . . . . . . . . . . 570 Structural 6510 | . . . . . . 760 . 1 . . . . 117 14 250 807 320 40 76 504 246 108 140 3 931 111 286 348 737 711 Traps 437 | . . . . . . 437 . . . . . . . . . . . . . . . . . . . . . . . . Seismic 742 | 4 466 268 4 . . . . . . . . . . . . . . . . . . . . . . . . . . . Decoding 714 | . . . . . . . . . . . . 5 528 181 . . . . . . . . . . . . . . . . Cloaking 7604 | . . . . . . 581 . 310 119 100 19 105 178 1 . 6 . . . 32 261 108 132 71 922 184 235 346 3170 724 ECM 135 | . . . . . . 1 . . . . . . . . . . . . . 1 . . . . . . 33 . 100 . Robot Analysis Total 10 | . 2 . . 1 . 2 . 4 . . . . . . . . . . . . . . . . 1 . . . . . Derelict Logs Recovered 10 | . . 2 2 . 2 . . . 1 2 . 1 . . . . . . . . . . . . . . . . . . Drone Launches . | . . . . . . . . . . . . . . . . . . . . . . . . . . . . . . . Drone Recoveries . | . . . . . . . . . . . . . . . . . . . . . . . . . . . . . . . Decoded 0b10 Intel 11 | . . . . . . . . . . . . . 11 . . . . . . . . . . . . . . . . . Traps 9 | . . . . . . . . . . . . . 9 . . . . . . . . . . . . . . . . . Emergency Access 2 | . . . . . . . . . . . . . 2 . . . . . . . . . . . . . . . . . Exploration | -11 -10 -10 -10 -9 -9 -6 -6 -6 -6 -6 -6 -5 -5 -5 -5 -5 -5 -5 -5 -4 -4 -4 -4 -3 -3 -3 -2 -2 -2 -1 ------------- Run | Yrd Mat Min Sub Rec Scr Fac Was Fac Low Low Dat Pro Fac Was Fac Ext Cet Arc Hub Fac Upp Upp War Pro Res Qua Res Tes Frg Acc Turns Passed 25251 | 41 484 268 5442 906 2088 2293 16 825 121 100 19 105 528 295 387 845 323 664 127 575 327 108 264 71 935 549 286 353 4042 1864 Spaces Moved 34704 | 40 544 388 3166 541 1356 3515 68 1320 416 261 76 384 859 552 422 987 326 260 300 1369 1010 417 751 243 2757 1370 618 989 7997 1402 Core 1161 | 40 544 385 9 . 114 . . 1 . . . . 1 . . . . 66 . . . . . . . . . . 1 . Treads 3174 | . . . 1391 541 1242 . . . . . . . . . . . . . . . . . . . . . . . . . Legs 583 | . . 3 580 . . . . . . . . . . . . . . . . . . . . . . . . . . . Wheels 1186 | . . . 1186 . . . . . . . . . . . . . . . . . . . . . . . . . . . Hover 3510 | . . . . . . . . . . . . . . . . . . . . . . . . . . . . . 2108 1402 Flight 25090 | . . . . . . 3515 68 1319 416 261 76 384 858 552 422 987 326 194 300 1369 1010 417 751 243 2757 1370 618 989 5888 . Fastest Speed 6 | 50 50 50 110 160 50 23 23 23 24 24 24 24 20 20 22 22 22 22 22 19 19 19 17 17 12 12 6 7 8 33 Average Speed 40 | 50 50 50 136 160 150 26 23 23 24 24 24 24 24 21 24 23 22 181 22 20 19 21 18 17 13 12 12 12 18 34 Slowest Speed 650 | 50 50 120 500 160 160 230 23 450 24 24 24 24 450 106 103 99 105 650 99 26 19 22 22 17 91 87 88 13 150 122 Overloaded Moves 264 | . . . . . . . . . . . . . . . . . . . . . . . . . . . 56 10 198 . Propulsion Burnouts . | . . . . . . . . . . . . . . . . . . . . . . . . . . . . . . . Robots Hopped 121 | . . . . . . 36 2 4 . . . . 2 3 . 8 . . 4 6 1 . . . 6 7 7 1 34 . Potential Cave-ins 8 | . . . . . . . . 2 . . . . . . . . . . . . . . . . . . . . . 6 Cave-ins Triggered . | . . . . . . . . . . . . . . . . . . . . . . . . . . . . . . . Teleports 3 | . . . . . . . . . . . . . . . . . . . . . . . . . . . . . 3 . Exploration Rate (%) 64 | 3 89 62 96 96 84 74 83 36 63 51 68 65 18 93 11 83 77 89 33 33 91 73 92 51 78 93 16 92 91 30 Regions Visited 30 Branch Regions 19 Pre-discovered Areas 27 | . 3 . 2 5 4 2 . 2 1 . 1 . 1 . . . . . . 2 . . . . 1 . . 1 2 . Known Exits Taken 22 | . . 1 . . 1 . . 1 1 1 1 1 . . 1 1 1 1 1 1 1 1 1 1 1 1 1 1 1 . Unknown Exits Taken 4 | 1 1 . 1 1 . . . . . . . . . . . . . . . . . . . . . . . . . . Scrap Searched 25 | . . 1 7 . 8 . . . 2 1 . 1 . . . . . . . . 2 1 . 2 . . . . . . Spaces Dug 365 | . 2 1 7 3 . 68 . 22 4 13 . 4 13 . 7 12 . . 6 24 10 2 . 4 43 8 16 12 27 57 Terrain Destroyed 1438 | . 2 1 22 3 . 68 . 24 4 13 . 4 13 11 7 46 . . 6 24 34 2 . 4 43 8 16 12 994 77 Melee 323 | . 2 1 7 3 . 68 . 22 4 13 . 4 13 . 7 . . . 6 24 10 2 . 4 43 8 16 12 27 27 Projectile 60 | . . . 2 . . . . 2 . . . . . . . 13 . . . . . . . . . . . . . 43 AOE 998 | . . . 13 . . . . . . . . . . 11 . 32 . . . . 24 . . . . . . . 918 . Terrain Rammed . | . . . . . . . . . . . . . . . . . . . . . . . . . . . . . . . Walls Destroyed . | . . . . . . . . . . . . . . . . . . . . . . . . . . . . . . . Machines Disabled . | . . . . . . . . . . . . . . . . . . . . . . . . . . . . . . . Actions | -11 -10 -10 -10 -9 -9 -6 -6 -6 -6 -6 -6 -5 -5 -5 -5 -5 -5 -5 -5 -4 -4 -4 -4 -3 -3 -3 -2 -2 -2 -1 --------- Run | Yrd Mat Min Sub Rec Scr Fac Was Fac Low Low Dat Pro Fac Was Fac Ext Cet Arc Hub Fac Upp Upp War Pro Res Qua Res Tes Frg Acc Total 43482 | 51 723 445 3978 556 1400 4597 65 1735 427 276 75 389 1136 723 687 1529 563 439 341 1611 1122 432 881 264 3185 1679 779 1177 9807 2410 Wait 5784 | . 142 31 517 2 17 878 . 315 3 2 . 1 238 152 224 417 209 158 30 128 94 14 99 15 276 250 141 151 793 487 Move 34449 | 39 543 387 3165 540 1355 3445 64 1311 415 260 75 383 855 546 421 971 325 259 291 1356 1007 416 750 242 2744 1356 604 986 7938 1400 Hop 103 | . . . . . . 34 1 4 . . . . 2 2 . 7 . . 4 6 1 . . . 6 6 6 1 23 . Pick Up 193 | 3 4 1 13 . 13 10 . 9 1 . . . 1 1 1 1 1 3 . 14 . . 1 . 7 8 1 3 81 16 Fast Attach 186 | 5 1 4 12 . 6 29 . 8 . . . 1 5 3 6 2 7 1 . 13 . . 8 . 6 5 . 5 51 8 Attach 145 | . 1 1 12 . 2 9 . 6 . . . . 4 2 3 10 1 1 . 6 . . . . 5 2 3 1 46 30 Detach 77 | . 1 1 3 . 1 2 . 1 . . . . 3 3 2 9 1 . . 3 . . . . 3 2 . 1 36 5 Swap 238 | . 7 6 18 . . 14 . 14 1 . . . 1 5 1 2 . 2 4 10 8 . 5 3 6 9 5 5 81 31 Drop 293 | . 4 4 26 . 6 30 . 7 1 . . . 3 6 6 3 8 2 . 25 . . 11 . 15 7 . 6 112 11 Fire 742 | 4 16 . 104 6 . 17 . 6 . . . . . 3 . 43 . . . 1 2 . . . . . . . 452 88 Melee 998 | . 3 5 78 8 . 129 . 54 6 14 . 4 24 . 13 13 3 13 6 30 10 2 7 4 86 29 19 18 87 333 Ram . | . . . . . . . . . . . . . . . . . . . . . . . . . . . . . . . Kick . | . . . . . . . . . . . . . . . . . . . . . . . . . . . . . . . Crush 6 | . 1 5 . . . . . . . . . . . . . . . . . . . . . . . . . . . . Escape Stasis 74 | . . . . . . . . . . . . . . . . . . . . 15 . . . . . . . . 58 1 Rewire 27 | . . . . . . . . . . . . . . . . 24 . . . . . . . . . . . . 3 . Trap 78 | . . . . . . . . . . . . . . . 10 19 . . 3 4 . . . . 31 5 . . 6 . Miscellaneous 89 | . . . 30 . . . . . . . . . . . . 8 8 . 3 . . . . . . . . . 40 . Route ------- -11/Scrapyard -10/Materials (discovered 5 exits: *Mat x3 / [*Min] / Sub) -10/Mines (discovered 4 exits: Mat x2 / Exi / *Sub) -10/Subcaves (discovered 3 exits: [*Mat x2] / *Rec) -9/Recycling (discovered 2 exits: [*Fac] / *Scr) -9/Scraptown (discovered 2 exits: *Fac x2) -6/Factory (discovered 6 exits: *Fac x4 / *Low x2) -6/Waste -6/Factory (discovered 5 exits: *Fac x3 / *Low x2) -6/Lower Caves -6/Lower Caves (discovered 2 exits: Fac / *Dat) -6/Data Miner -5/Proximity Caves -5/Factory (discovered 2 exits: *Upp x2) -5/Waste -5/Factory -5/Extension (discovered 3 exits: *Fac x2 / *Cet) -5/Cetus (discovered 3 exits: *Fac x2 / *Arc) -5/Archives (discovered 3 exits: *Fac / *Hub x2) -5/Hub_04(d) -4/Factory (discovered 6 exits: Res x4 / *Upp x2) -4/Upper Caves -4/Upper Caves (discovered 2 exits: *Res / *War) -4/Warlord -3/Proximity Caves -3/Research (discovered 6 exits: *Res x3 / *Arm / *Qua x2) -3/Quarantine -2/Research (discovered 3 exits: Acc / *Tes x2) -2/Testing (discovered 3 exits: *Acc / *Sec / *Frg) -2/Protoforge -1/Access To Epsilon Eridani History --------- Turn | Location | Event 8 | -11/Scrapyard | Discovered new exit (range 15) 42 | -11/Scrapyard | Entered Materials 83 | -10/Materials | Discovered new exit (range 12) 273 | -10/Materials | Discovered new exit (range 16) 313 | -10/Materials | Build established: Mutant 398 | -10/Materials | Discovered new exit (range 6) 409 | -10/Materials | Learned Storage emergency access door positions 434 | -10/Materials | Learned location of Mines (-9) 447 | -10/Materials | Loaded intel: 2 recycling unit locations 448 | -10/Materials | Learned 2 Mines zone layouts 449 | -10/Materials | Learned Storage stockpile data 494 | -10/Materials | Identified exit to Materials 494 | -10/Materials | Identified exit to Subcaves 526 | -10/Materials | Entered Mines 527 | -10/Mines | Identified exit to Exiles 539 | -10/Mines | Learned location of 1 exit from Materials 545 | -10/Mines | A weapon hastily lodged in a ceiling crevice suddenly fell to the ground 562 | -10/Mines | Met a Derelict bent on vengeance 573 | -10/Mines | Assembled infested the area 578 | -10/Mines | Assisted by a Guerilla fighting off Assembled 629 | -10/Mines | Found a damaged Exp. Sensor Array with a note attached 630 | -10/Mines | Found Prototype Device 630 | -10/Mines | Identified Exp. Sensor Array 640 | -10/Mines | Received a Mining Laser from a helpful Derelict 759 | -10/Mines | Found a Scrap Suit stashed away for nefarious purposes 779 | -10/Mines | Discovered exit to Subcaves (range 3) 794 | -10/Mines | Entered Subcaves 794 | -10/Subcaves | Accompanied by 1 ally 795 | -10/Subcaves | Approached by a straggling Scientist 960 | -10/Subcaves | Learned location of Zion (-7) 960 | -10/Subcaves | Met a Zionite searching for "candidates" 1102 | -10/Subcaves | Disturbed a concealed Subdweller 1171 | -10/Subcaves | Build established: Subdweller-Mutant 1306 | -10/Subcaves | Disturbed a concealed Subdweller 1404 | -10/Subcaves | Learned Materials emergency access door positions 2042 | -10/Subcaves | Core integrity fell below 50% 2227 | -10/Subcaves | A swath of the cavern ceiling suddenly collapsed 2465 | -10/Subcaves | A Subdweller sparked back to life 2557 | -10/Subcaves | Shifting Twisted Machinery released Riot Gun 2574 | -10/Subcaves | Discovered new exit (range 8) 2580 | -10/Subcaves | Shifting Twisted Machinery released Sub. Optics 2814 | -10/Subcaves | Shifting Twisted Machinery released Sub. Shrapnel Launcher 2951 | -10/Subcaves | Visited 4L-MR0's lab 2966 | -10/Subcaves | Found Rainbow Chip 2967 | -10/Subcaves | Attached Rainbow Chip, gained temporary slots: Power, Propulsion, Utility, Weapon 3023 | -10/Subcaves | Discovered new exit (range 3) 3387 | -10/Subcaves | Discovered new exit (range 13) 3404 | -10/Subcaves | Core integrity fell below 20% 3804 | -10/Subcaves | Found Flightbrick 4089 | -10/Subcaves | Build established: Derelict-Mutant 4104 | -10/Subcaves | Visited Clippyterm 4109 | -10/Subcaves | Learned Factory emergency access door positions 4109 | -10/Subcaves | Learned Factory garrison access intel 4785 | -10/Subcaves | Shifting Twisted Machinery released Sub. Monowheel 5216 | -10/Subcaves | Shifting Twisted Machinery released Battle Cannon 5822 | -10/Subcaves | A swath of the cavern ceiling suddenly collapsed 6236 | -10/Subcaves | Entered Recycling 6517 | -9/Recycling | Discovered new exit (range 5) 6905 | -9/Recycling | Learned Materials terminal intel 6952 | -9/Recycling | Learned location of 2 exits from Materials 6991 | -9/Recycling | Learned Storage trap positions 7018 | -9/Recycling | Learned 2 Storage zone layouts 7040 | -9/Recycling | Learned Storage emergency access door positions 7041 | -9/Recycling | Learned location of 2 exits from Materials 7081 | -9/Recycling | Learned 2 Storage zone layouts 7105 | -9/Recycling | Scanned before Scraplab entrance 7112 | -9/Recycling | Learned 8 Materials zone layouts 7127 | -9/Recycling | Entered Scraplab 7140 | -9/Recycling | Discovered new exit (range 2) 7142 | -9/Recycling | Entered Scraptown 7335 | -9/Scraptown | Visited UFD Registry 7335 | -9/Scraptown | Registered with UFD as "Fissionslicer" 7351 | -9/Scraptown | Visited Bundlers 7431 | -9/Scraptown | Visited The Evicted 7465 | -9/Scraptown | Visited Fellowship of the Rings 7482 | -9/Scraptown | Visited Cave Peace 7495 | -9/Scraptown | Visited CPS Storage 7522 | -9/Scraptown | Visited Science Testing Area 7610 | -9/Scraptown | Scanned Subdweller tech in exchange for log data 7617 | -9/Scraptown | Learned Factory stockpile data 7633 | -9/Scraptown | Discovered new exit (range 13) 8007 | -9/Scraptown | Visited LU-1G1's Boring Crew 8030 | -9/Scraptown | Visited DA-N13 Charitable Foundation 8036 | -9/Scraptown | Found DCF Scrap (29 items) 8075 | -9/Scraptown | Visited Scrapoid Pod Storage 8120 | -9/Scraptown | Delivered Scrap Shield to a Scientist 8196 | -9/Scraptown | Visited Supply Room 8220 | -9/Scraptown | Visited Scrap Suit Storage 8241 | -9/Scraptown | Visited Junk Repository 8289 | -9/Scraptown | Visited Cartography Club 8344 | -9/Scraptown | Found Deep Structural Scanner 8350 | -9/Scraptown | Learned 20 Factory zone layouts 8350 | -9/Scraptown | Learned 16 Lower Caves zone layouts 8350 | -9/Scraptown | Learned 8 Proximity Caves zone layouts 8350 | -9/Scraptown | Learned 12 Proximity Caves zone layouts 8350 | -9/Scraptown | Learned 16 Proximity Caves zone layouts 8350 | -9/Scraptown | Learned Materials emergency access door positions 8350 | -9/Scraptown | Learned location of 3 exits from Factory 8350 | -9/Scraptown | Learned location of 1 exit from Lower Caves 8350 | -9/Scraptown | Identified exit to Factory 8405 | -9/Scraptown | Visited Chapter 10 8459 | -9/Scraptown | Visited Abandonware Association 8477 | -9/Scraptown | Learned abandonware demo "MELTYB.EXE" 8477 | -9/Scraptown | Learned abandonware demo "REBOOT5.EXE" 8480 | -9/Scraptown | Learned abandonware demo "OVRCLOCK.EXE" 8518 | -9/Scraptown | Visited Curators Association 9143 | -9/Scraptown | Met Optimus 9143 | -9/Scraptown | Accepted into 0bPrime 9230 | -9/Scraptown | Entered Factory 9230 | -6/Factory | Evolved 8 slots: Propulsion x3, Utility x5 9231 | -6/Factory | Identified exit to Factory 9231 | -6/Factory | Identified exit to Lower Caves 9233 | -6/Factory | Attached Flightbrick, gained temporary slots: Utility x3 9235 | -6/Factory | Loaded intel: 3 garrison access locations 9815 | -6/Factory | Loaded intel: 8 recycling unit locations 9917 | -6/Factory | Lost 3 parts (2u1w) 9930 | -6/Factory | First assault squad dispatched 9951 | -6/Factory | Learned location of Protoforge (-2) 10070 | -6/Factory | Learned 2 Hub_04(d) zone layouts 10129 | -6/Factory | Learned 8 Factory zone layouts 10153 | -6/Factory | Learned location of 2 exits from Proximity Caves 10194 | -6/Factory | Learned 2 Extension zone layouts 10280 | -6/Factory | Search patrols dispatched 10308 | -6/Factory | Build established: Hacker-Sprinter 10630 | -6/Factory | Search patrols dispatched 10705 | -6/Factory | Central database locked down 10980 | -6/Factory | Search patrols dispatched 10988 | -6/Factory | Learned location of 1 exit from Upper Caves 11130 | -6/Factory | Learned location of 1 exit from Proximity Caves 11188 | -6/Factory | Learned 2 Proximity Caves zone layouts 11220 | -6/Factory | Build established: Hacker-Mutant 11234 | -6/Factory | Learned location of 2 exits from Lower Caves 11298 | -6/Factory | Learned Factory stockpile data 11330 | -6/Factory | Search patrols dispatched 11384 | -6/Factory | Learned 4 Proximity Caves zone layouts 11442 | -6/Factory | Learned 2 Proximity Caves zone layouts 11523 | -6/Factory | Manually triggered Chute Trap 11523 | -6/Factory | Sucked down chute 11523 | -6/Factory | Entered Waste 11524 | -6/Waste | Identified exit to Factory 11525 | -6/Waste | Spotted C-40 Crusher 11526 | -6/Waste | Spotted C-40 Crusher 11529 | -6/Waste | Spotted C-40 Crusher 11532 | -6/Waste | Spotted C-40 Crusher 11536 | -6/Waste | Spotted C-40 Crusher 11536 | -6/Waste | Spotted C-40 Crusher 11538 | -6/Waste | EMP discharged 11539 | -6/Waste | Entered Factory 11559 | -6/Factory | Loaded intel: 8 recycling unit locations 11588 | -6/Factory | Repaired Broken CPS Tube 11623 | -6/Factory | Central database locked down 11674 | -6/Factory | Learned location of Lower Caves (-6) 11713 | -6/Factory | Learned Hub_04(d) stockpile data 11744 | -6/Factory | Learned location of 1 exit from Cetus 11766 | -6/Factory | Learned 2 Lower Caves zone layouts 11776 | -6/Factory | Learned 2 Lower Caves zone layouts 11798 | -6/Factory | System corruption reached 10% 11829 | -6/Factory | Learned Hub_04(d) garrison access intel 11830 | -6/Factory | Build established: Hacker-Sprinter 11861 | -6/Factory | Scraphulk reinforcements arrived? 11889 | -6/Factory | Search patrols dispatched 11909 | -6/Factory | Attached CPS modules to 06F01-K. 12017 | -6/Factory | Fabricated Imp. System Restoration Module? 12076 | -6/Factory | Fabricated Adv. Trap Extractor (x2) 12239 | -6/Factory | Fabricated Adv. Hardlight Generator (x2) 12350 | -6/Factory | Cargo convoy interrupted 12364 | -6/Factory | Entered Lower Caves 12365 | -6/Lower Caves | Identified exit to Lower Caves 12366 | -6/Lower Caves | UFD Scientist delivered a prototype 12366 | -6/Lower Caves | Encountered a Warlord checkpoint 12368 | -6/Lower Caves | Found Prototype Protection 12485 | -6/Lower Caves | Entered another Lower Caves area 12486 | -6/Lower Caves | Identified exit to Data Miner 12517 | -6/Lower Caves | Learned Factory interactive machine intel 12568 | -6/Lower Caves | Learned Factory garrison access intel 12585 | -6/Lower Caves | Entered Data Miner 12585 | -6/Data Miner | Discovered new exit (range 6) 12590 | -6/Data Miner | Met Data Miner 12594 | -6/Data Miner | Learned location of Section 7 (-2) 12594 | -6/Data Miner | Acquired the access code to Warlord's prototype stash 12598 | -6/Data Miner | Received God Mode back door access code from Data Miner 12603 | -6/Data Miner | Identified exit to Proximity Caves 12604 | -6/Data Miner | Entered Proximity Caves 12696 | -5/Proximity Caves | Learned location of 1 exit from Upper Caves 12709 | -5/Proximity Caves | Entered Factory 12709 | -5/Factory | Evolved 2 slots: Propulsion x1, Utility x1 12710 | -5/Factory | Identified exit to Upper Caves 12711 | -5/Factory | Loaded intel: 56 interactive machine locations 12712 | -5/Factory | Loaded intel: 4 garrison access locations 12716 | -5/Factory | Identified Enh. Scrap Shield 12723 | -5/Factory | Discovered exit to Upper Caves (range 16) 12750 | -5/Factory | Loaded intel: 8 recycling unit locations 12777 | -5/Factory | Incoming investigation squad redirected 12914 | -5/Factory | Repaired Cld. Cesium-ion Thruster? 13053 | -5/Factory | Learned Extension trap positions 13131 | -5/Factory | Learned Quarantine trap positions 13237 | -5/Factory | Manually triggered Chute Trap 13237 | -5/Factory | Sucked down chute 13237 | -5/Factory | Entered Waste 13253 | -5/Waste | Spotted C-40 Crusher 13254 | -5/Waste | Spotted C-40 Crusher 13257 | -5/Waste | Spotted C-40 Crusher 13257 | -5/Waste | Spotted C-40 Crusher 13258 | -5/Waste | Spotted C-40 Crusher 13258 | -5/Waste | Spotted C-40 Crusher 13260 | -5/Waste | Discovered new exit (range 11) 13339 | -5/Waste | Warlord forces began an assault 13398 | -5/Waste | Allies destroyed C-40 Crusher 13402 | -5/Waste | Allies destroyed C-40 Crusher 13410 | -5/Waste | Allies destroyed C-40 Crusher 13414 | -5/Waste | Allies destroyed C-40 Crusher 13438 | -5/Waste | Destroyed C-40 Crusher 13441 | -5/Waste | Allies destroyed C-40 Crusher 13444 | -5/Waste | Lost 7 allies 13498 | -5/Waste | Identified exit to Factory 13532 | -5/Waste | Entered Factory 13532 | -5/Factory | Accompanied by 12 allies 13627 | -5/Factory | Discovered new exit (range 10) 13631 | -5/Factory | Lost 4 allies 13646 | -5/Factory | Build established: Hacker-Scout 13771 | -5/Factory | Loaded intel: 8 recycling unit locations 13895 | -5/Factory | Identified exit to Extension 13919 | -5/Factory | Entered Extension 13919 | -5/Extension | Accompanied by 6 allies 13920 | -5/Extension | Identified exit to Factory 13921 | -5/Extension | Loaded intel: 22 trap records 13934 | -5/Extension | Rescued a captive Derelict 14067 | -5/Extension | Rescued a captive Derelict 14068 | -5/Extension | Rescued a captive Derelict 14355 | -5/Extension | Spotted B-75 Beast 14375 | -5/Extension | Allies destroyed B-75 Beast 14377 | -5/Extension | Spotted B-75 Beast 14385 | -5/Extension | Allies destroyed B-75 Beast 14414 | -5/Extension | Rescued a captive Derelict 14425 | -5/Extension | Lost 5 allies 14512 | -5/Extension | Rescued a captive Derelict 14516 | -5/Extension | Lost 4 allies 14685 | -5/Extension | Rescued A7 14712 | -5/Extension | Discovered exit to Factory (range 10) 14712 | -5/Extension | Discovered new exit (range 6) 14713 | -5/Extension | Identified exit to Cetus 14764 | -5/Extension | Entered Cetus 14764 | -5/Cetus | Accompanied by 8 allies (A7) 14769 | -5/Cetus | Acquired a Cetus Manufacturing Module code from A7 14776 | -5/Cetus | Spotted Cetus Guard 14782 | -5/Cetus | Spotted Cetus Guard 14782 | -5/Cetus | Spotted Cetus Guard 14782 | -5/Cetus | Spotted Cetus Guard 14785 | -5/Cetus | Allies destroyed Cetus Guard 14789 | -5/Cetus | Allies destroyed Cetus Guard 14790 | -5/Cetus | Allies destroyed Cetus Guard 14798 | -5/Cetus | Allies destroyed Cetus Guard 14835 | -5/Cetus | Started Cetus Manufacturing Module 14855 | -5/Cetus | Escorted A7 to Cetus Mainframe 14860 | -5/Cetus | Manufactured an Enhanced Grunt 14885 | -5/Cetus | Manufactured an Enhanced Grunt 14910 | -5/Cetus | Manufactured an Enhanced Grunt 14935 | -5/Cetus | Manufactured an Enhanced Grunt 14960 | -5/Cetus | Manufactured an Enhanced Grunt 14980 | -5/Cetus | Build established: Commander-Scout 14980 | -5/Cetus | Discovered new exit (range 18) 14985 | -5/Cetus | Spotted Cetus Guard 14985 | -5/Cetus | Spotted Cetus Guard 15005 | -5/Cetus | Spotted Cetus Guard 15005 | -5/Cetus | Spotted Cetus Guard 15026 | -5/Cetus | Allies destroyed Cetus Guard 15030 | -5/Cetus | Allies destroyed Cetus Guard 15034 | -5/Cetus | Discovered exit to Factory (range 18) 15036 | -5/Cetus | Met Revision 17 15042 | -5/Cetus | Identified exit to Archives 15087 | -5/Cetus | Entered Archives 15087 | -5/Archives | Accompanied by 10 allies (A7) 15092 | -5/Archives | Received a hacking code to weaken MAIN.C 15130 | -5/Archives | Discovered exit to Factory (range 16) 15143 | -5/Archives | Discovered new exit (range 14) 15149 | -5/Archives | Discovered new exit (range 13) 15577 | -5/Archives | Build established: Commander-Assassin 15725 | -5/Archives | Identified exit to Hub_04(d) 15751 | -5/Archives | Entered Hub_04(d) 15751 | -5/Hub_04(d) | Accompanied by 8 allies 15754 | -5/Hub_04(d) | Loaded intel: 2 garrison access locations 15853 | -5/Hub_04(d) | Network Hub disabled 15878 | -5/Hub_04(d) | Entered Factory 15878 | -4/Factory | Evolved 2 slots: Power x1, Propulsion x1 15902 | -4/Factory | Loaded intel: 8 recycling unit locations 15923 | -4/Factory | Repaired Adv. Cloaking Device 16048 | -4/Factory | Build established: Scavenger-Scout 16148 | -4/Factory | Discovered new exit (range 14) 16156 | -4/Factory | Identified exit to Upper Caves 16157 | -4/Factory | Learned location of 1 exit from Research 16177 | -4/Factory | Spotted B-86 Titan 16201 | -4/Factory | Found Prototype Processor 16201 | -4/Factory | Identified Exp. Signal Interpreter 16212 | -4/Factory | Unchained authorized (6S-H0T) 16244 | -4/Factory | Learned Armory emergency access door positions 16292 | -4/Factory | Learned location of 1 exit from Proximity Caves 16302 | -4/Factory | Learned location of Warlord (-4) 16310 | -4/Factory | Learned 4 Quarantine zone layouts 16326 | -4/Factory | Identified exit to Research 16357 | -4/Factory | Found Prototype Ballistic Gun 16377 | -4/Factory | Identified 6S-H0T's Six Shooter 16446 | -4/Factory | Found Prototype Device 16446 | -4/Factory | Identified Exp. ECM Suite 16453 | -4/Factory | Entered Upper Caves 16454 | -4/Upper Caves | Identified exit to Upper Caves 16462 | -4/Upper Caves | Spotted B-86 Titan 16755 | -4/Upper Caves | Build established: Scavenger-Ninja 16780 | -4/Upper Caves | Entered another Upper Caves area 16866 | -4/Upper Caves | Discovered new exit (range 13) 16888 | -4/Upper Caves | Identified exit to Warlord 16888 | -4/Upper Caves | Entered Warlord 16896 | -4/Warlord | System corruption cleaned by Quarantine Array 16967 | -4/Warlord | Learned Testing security intel 16967 | -4/Warlord | Learned Quarantine security intel 16967 | -4/Warlord | Learned Factory scanalyzer intel 16967 | -4/Warlord | Learned 4 Armory zone layouts 16967 | -4/Warlord | Learned 4 Testing zone layouts 16967 | -4/Warlord | Learned Quarantine emergency access door positions 17017 | -4/Warlord | Opened Warlord's prototype stash 17024 | -4/Warlord | Found Prototype Reactor 17024 | -4/Warlord | Identified Vortex Chain Reactor 17028 | -4/Warlord | Found Prototype Device 17028 | -4/Warlord | Identified Exp. Focal Shield 17032 | -4/Warlord | Found Prototype Hackware 17032 | -4/Warlord | Identified Ghost Barrier 17035 | -4/Warlord | Found Prototype Processor 17035 | -4/Warlord | Identified Exp. Target Analyzer 17051 | -4/Warlord | Visited the Vortex Lab 17061 | -4/Warlord | Rebuked by Warlord 17063 | -4/Warlord | Warlord's base attacked by MAIN.C 17151 | -4/Warlord | Discovered new exit (range 8) 17152 | -4/Warlord | Identified exit to Proximity Caves 17152 | -4/Warlord | Entered Proximity Caves 17188 | -3/Proximity Caves | Attracted the attention of an 0b10 checkpoint 17195 | -3/Proximity Caves | Spotted B-86 Titan 17223 | -3/Proximity Caves | Entered Research 17223 | -3/Research | Evolved 2 slots: Propulsion x1, Utility x1 17224 | -3/Research | Identified exit to Armory 17224 | -3/Research | Identified exit to Quarantine 17225 | -3/Research | Identified exit to Research 17296 | -3/Research | Imp. Hacking Suite fried by hacking feedback 17390 | -3/Research | Discovered exit to Research (range 16) 17423 | -3/Research | Revision forces began assault on 0b10 17424 | -3/Research | Discovered exit to Research (range 15) 17446 | -3/Research | Spotted B-86 Titan 17532 | -3/Research | Met up with Revision 17++ 17540 | -3/Research | Lost 3 allies 17641 | -3/Research | Spotted B-86 Titan 17644 | -3/Research | Build established: Hacker-Ninja 17648 | -3/Research | Loaded intel: 5 recycling unit locations 17687 | -3/Research | Discovered exit to Quarantine (range 8) 17758 | -3/Research | Learned location of Armory (-3) 17923 | -3/Research | Research terminal network offline 17972 | -3/Research | Fabricated Exp. Sensor Array? 18044 | -3/Research | Fabricated Lrg. Storage Unit (x1) 18158 | -3/Research | Entered Quarantine 18160 | -3/Quarantine | Loaded intel: 14 trap records 18168 | -3/Quarantine | Cryocooling Duct disabled 18183 | -3/Quarantine | Ambient heat levels rising (+20) 18183 | -3/Quarantine | Non-combat units ordered to evacuate 18193 | -3/Quarantine | Found Alien Artifact 18194 | -3/Quarantine | Found Alien Artifact 18195 | -3/Quarantine | Found Alien Artifact 18196 | -3/Quarantine | Found Alien Artifact 18201 | -3/Quarantine | Identified Hpw. Transdimensional Reconstructor (x3) 18201 | -3/Quarantine | Identified Dimensional Node Initializer 18206 | -3/Quarantine | Found Alien Artifact 18212 | -3/Quarantine | Identified Subatomic Replicator 18212 | -3/Quarantine | Used Subatomic Replicator to create Alien Artifact 18223 | -3/Quarantine | Identified Supercharged TR 18275 | -3/Quarantine | Found Alien Slashing Weapon 18275 | -3/Quarantine | Identified Sigix Broadsword 18287 | -3/Quarantine | Found Prototype Device 18299 | -3/Quarantine | Identified Exp. Thermal Defense Suite 18321 | -3/Quarantine | Cryocooling Duct disabled 18336 | -3/Quarantine | Ambient heat levels rising (+20) 18336 | -3/Quarantine | Combat units ordered to evacuate 18347 | -3/Quarantine | Unchained authorized (6S-H0T) 18436 | -3/Quarantine | Quarantine Guard activated 18520 | -3/Quarantine | Spotted Quarantine Guard 18525 | -3/Quarantine | Spotted Quarantine Guard 18526 | -3/Quarantine | Spotted Quarantine Guard 18527 | -3/Quarantine | Spotted Quarantine Guard 18527 | -3/Quarantine | Spotted Quarantine Guard 18528 | -3/Quarantine | Spotted Quarantine Guard 18528 | -3/Quarantine | Spotted Quarantine Guard 18536 | -3/Quarantine | Spotted Quarantine Guard 18536 | -3/Quarantine | Spotted Quarantine Guard 18558 | -3/Quarantine | Found Alien Artifact 18558 | -3/Quarantine | Identified Terrabomb 18558 | -3/Quarantine | Used Terrabomb 18576 | -3/Quarantine | Learned 4 Access zone layouts 18625 | -3/Quarantine | Destroyed 6S-H0T 18629 | -3/Quarantine | Build established: Hacker-Sprinter 18630 | -3/Quarantine | Spotted Alpha 7 18634 | -3/Quarantine | Learned Testing scanalyzer intel 18636 | -3/Quarantine | Found Alien Launcher 18636 | -3/Quarantine | Identified Sigix Terminator 18648 | -3/Quarantine | Learned Access stockpile data 18686 | -3/Quarantine | Learned Section 7 stockpile data 18688 | -3/Quarantine | Spotted Quarantine Guard 18699 | -3/Quarantine | Spotted Quarantine Guard 18707 | -3/Quarantine | Entered Research 18707 | -2/Research | Evolved 2 slots: Utility x2 18708 | -2/Research | Identified exit to Access 18759 | -2/Research | Discovered new exit (range 13) 18762 | -2/Research | Identified exit to Testing 18793 | -2/Research | Repaired Broken Imp. Diametric Drive? 18796 | -2/Research | Loaded intel: 5 recycling unit locations 18993 | -2/Research | Entered Testing 18994 | -2/Testing | Identified exit to Section 7 18996 | -2/Testing | Loaded intel: 3 scanalyzer locations 19068 | -2/Testing | Found Prototype Device 19073 | -2/Testing | Identified Adv. EM Shield 19102 | -2/Testing | Found Prototype Energy Cannon 19102 | -2/Testing | Identified Hpw. Disruptor Cannon 19152 | -2/Testing | Found Prototype Device 19164 | -2/Testing | Found Prototype Energy Gun 19164 | -2/Testing | Identified Warp Gun 19170 | -2/Testing | Learned Research repair station intel 19176 | -2/Testing | Unchained authorized (CL-0N3) 19214 | -2/Testing | Repaired Cld. Cesium-ion Thruster 19237 | -2/Testing | Learned Research stockpile data 19237 | -2/Testing | Build established: Hacker-Ninja 19249 | -2/Testing | Identified Exp. Weapon Cycler 19260 | -2/Testing | Spotted Fortress 19272 | -2/Testing | Discovered new exit (range 6) 19272 | -2/Testing | Identified exit to Protoforge 19295 | -2/Testing | Learned Access recycling unit intel 19343 | -2/Testing | W-44 Eye reconstituted as Combat Programmer 19343 | -2/Testing | Spotted Combat Programmer 19346 | -2/Testing | Entered Protoforge 19348 | -2/Protoforge | Warped through subspace 19353 | -2/Protoforge | Discovered exit to Access (range 7) 19368 | -2/Protoforge | Superfortress began startup sequence 19391 | -2/Protoforge | Warped through subspace 19424 | -2/Protoforge | Spotted Hotshot 19424 | -2/Protoforge | Spotted Hotshot 19450 | -2/Protoforge | Spotted Hotshot 19596 | -2/Protoforge | Search patrols dispatched 19606 | -2/Protoforge | Destroyed Hotshot 19871 | -2/Protoforge | Spotted Hotshot 19901 | -2/Protoforge | Learned location of 1 exit from Research 19965 | -2/Protoforge | Learned Research terminal intel 20011 | -2/Protoforge | Learned Access security intel 20048 | -2/Protoforge | Learned 4 Access zone layouts 20060 | -2/Protoforge | UFD initiated attack on Protoforge (Readiness: Maximal) 20060 | -2/Protoforge | Loaded intel: 3 recycling unit locations 20077 | -2/Protoforge | Scraphulk reinforcements arrived 20085 | -2/Protoforge | Spotted EXE-6 20085 | -2/Protoforge | Spotted EXE-6 20088 | -2/Protoforge | Scraphulk reinforcements arrived? 20098 | -2/Protoforge | Optimus greeted in Protoforge 20106 | -2/Protoforge | Found Prototype Ballistic Gun 20106 | -2/Protoforge | Identified Cep. XC Strikerail 20109 | -2/Protoforge | Found Prototype Processor 20109 | -2/Protoforge | Identified Exp. Core Analyzer 20111 | -2/Protoforge | Found Prototype Processor 20111 | -2/Protoforge | Identified Exp. Armor Integrity Analyzer 20116 | -2/Protoforge | Found Exp. Core Analyzer 20128 | -2/Protoforge | Spotted Overlord 20132 | -2/Protoforge | Initialized slip node 20143 | -2/Protoforge | Warped through subspace to slip node 20145 | -2/Protoforge | Spotted SKR-2 20159 | -2/Protoforge | Found Prototype Power Core 20159 | -2/Protoforge | Identified Cep. Zero-point Core 20162 | -2/Protoforge | Found Prototype Storage 20162 | -2/Protoforge | Identified Cep. Chromion Battery 20163 | -2/Protoforge | Spotted SKR-2 20163 | -2/Protoforge | Spotted SKR-2 20164 | -2/Protoforge | Found Prototype Device 20164 | -2/Protoforge | Identified Exp. EM Disruption Field 20166 | -2/Protoforge | Found Prototype Processor 20166 | -2/Protoforge | Identified Exp. Targeting Computer 20169 | -2/Protoforge | Found Cep. Zero-point Core 20172 | -2/Protoforge | Found Prototype Device 20172 | -2/Protoforge | Identified Cep. Antimissile System 20186 | -2/Protoforge | Found Prototype Device 20186 | -2/Protoforge | Identified Thermal Barrier 20190 | -2/Protoforge | Fabricated Exp. Q-thruster? 20203 | -2/Protoforge | Lost 11 allies 20226 | -2/Protoforge | Met 7R-MNS 20300 | -2/Protoforge | Spotted Striker 20307 | -2/Protoforge | UFD reported confirmed Drillbomb installation 20343 | -2/Protoforge | Spotted Executioner 20350 | -2/Protoforge | Destroyed Executioner 20355 | -2/Protoforge | Spotted Striker 20360 | -2/Protoforge | Destroyed Striker 20369 | -2/Protoforge | Spotted Striker 20390 | -2/Protoforge | Spotted Striker 20394 | -2/Protoforge | UFD reported confirmed Drillbomb installation 20395 | -2/Protoforge | Spotted Executioner 20420 | -2/Protoforge | UFD reported confirmed Drillbomb installation 20483 | -2/Protoforge | Spotted Decapitator 20483 | -2/Protoforge | Spotted Decapitator 20483 | -2/Protoforge | Spotted Decapitator 20496 | -2/Protoforge | Fired Sigix Terminator 20496 | -2/Protoforge | Destroyed Decapitator 20496 | -2/Protoforge | Destroyed Decapitator 20496 | -2/Protoforge | Destroyed Decapitator 20502 | -2/Protoforge | Spotted V993-j 20521 | -2/Protoforge | Spotted Executioner 20537 | -2/Protoforge | Forge Plexus network access discovered 20544 | -2/Protoforge | Spotted V372-t 20556 | -2/Protoforge | Spotted V091-h 20571 | -2/Protoforge | Spotted V385-o 20576 | -2/Protoforge | Found Cep. Weapon Articulator 20586 | -2/Protoforge | Spotted V490-u 20595 | -2/Protoforge | Lost 5 allies 20606 | -2/Protoforge | Attached CPS modules to V490-u. 20650 | -2/Protoforge | Found Thermal Barrier 20652 | -2/Protoforge | Found Exp. Jetlance 20655 | -2/Protoforge | Found Prototype Device 20655 | -2/Protoforge | Identified Exp. Shield Generator 20659 | -2/Protoforge | Found Cep. Combat Aerolev Unit 20805 | -2/Protoforge | Spotted V282-q 20805 | -2/Protoforge | Spotted V988-n 20805 | -2/Protoforge | Spotted V483-o 20812 | -2/Protoforge | Found Crosscalibrator 20813 | -2/Protoforge | Spotted Immortal 20858 | -2/Protoforge | Destroyed Immortal 20862 | -2/Protoforge | Found Cep. Antimissile System 20864 | -2/Protoforge | Spotted Decapitator 20864 | -2/Protoforge | Spotted Decapitator 20864 | -2/Protoforge | Spotted Decapitator 20864 | -2/Protoforge | Spotted Decapitator 20874 | -2/Protoforge | Scanned by Researcher 20883 | -2/Protoforge | Found Cep. Antigrav Storage Unit 20900 | -2/Protoforge | Spotted Decapitator 20900 | -2/Protoforge | Spotted Decapitator 20900 | -2/Protoforge | Spotted Decapitator 20919 | -2/Protoforge | Found Cep. Tiamat Rocket Array 20921 | -2/Protoforge | Found Cep. Rapid Grenade Launcher 20924 | -2/Protoforge | Found Cep. Rapid Grenade Launcher 20928 | -2/Protoforge | Destroyed Decapitator 20928 | -2/Protoforge | Destroyed Decapitator 20928 | -2/Protoforge | Destroyed Decapitator 20946 | -2/Protoforge | Build established: Scavenger-Scout 20946 | -2/Protoforge | Destroyed Decapitator 20946 | -2/Protoforge | Destroyed Decapitator 20946 | -2/Protoforge | Destroyed Decapitator 20946 | -2/Protoforge | Destroyed Decapitator 20967 | -2/Protoforge | Destroyed 7 combat bots 21010 | -2/Protoforge | UFD reported confirmed Drillbomb installation 21032 | -2/Protoforge | Found Cep. Miniperforator 21033 | -2/Protoforge | Found Cep. Miniperforator 21035 | -2/Protoforge | Found Cep. Disintegration Ray 21037 | -2/Protoforge | Found Cep. Lightning Penetrator 21059 | -2/Protoforge | Found Prototype Protection 21059 | -2/Protoforge | Identified Centrium Heavy Armor Plating 21073 | -2/Protoforge | Spotted V076-e 21168 | -2/Protoforge | Spotted Executioner 21178 | -2/Protoforge | Spotted Executioner 21183 | -2/Protoforge | Destroyed V076-e 21185 | -2/Protoforge | Destroyed Executioner 21188 | -2/Protoforge | Destroyed Executioner 21205 | -2/Protoforge | Found Exp. Core Analyzer 21223 | -2/Protoforge | Lost 4 allies 21240 | -2/Protoforge | Spotted Executioner 21242 | -2/Protoforge | Destroyed 10 combat bots 21248 | -2/Protoforge | Destroyed Executioner 21280 | -2/Protoforge | Spotted Executioner 21280 | -2/Protoforge | Destroyed Executioner 21322 | -2/Protoforge | Destroyed 11 combat bots 21324 | -2/Protoforge | Found Cep. NT7 Matterbank 21326 | -2/Protoforge | Found Cep. NT7 Matterbank 21341 | -2/Protoforge | Found Faulty Exp. Jetlance 21342 | -2/Protoforge | Found Exp. Jetlance 21359 | -2/Protoforge | Destroyed V988-n 21362 | -2/Protoforge | Destroyed V282-q 21365 | -2/Protoforge | Destroyed V483-o 21368 | -2/Protoforge | Spotted V921-l 21388 | -2/Protoforge | Spotted Striker 21392 | -2/Protoforge | Destroyed Striker 21461 | -2/Protoforge | Destroyed Executioner 21464 | -2/Protoforge | Destroyed Striker 21470 | -2/Protoforge | P-80 Master assimilated allied 02F03-K 21472 | -2/Protoforge | Spotted 02F03-K 21478 | -2/Protoforge | Spotted Striker 21479 | -2/Protoforge | Destroyed Striker 21480 | -2/Protoforge | Spotted Striker 21486 | -2/Protoforge | Destroyed Striker 21507 | -2/Protoforge | Destroyed 11 combat bots 21514 | -2/Protoforge | Found Cep. Fieldthrust Drive 21564 | -2/Protoforge | Destroyed V385-o 21630 | -2/Protoforge | Spotted AP7-3 21649 | -2/Protoforge | Spotted AP7-3 21698 | -2/Protoforge | Destroyed AP7-3 21711 | -2/Protoforge | Found Prototype Energy Gun 21711 | -2/Protoforge | Identified Enh. Gamma Rifle 21779 | -2/Protoforge | Destroyed AP7-3 21797 | -2/Protoforge | Found Cep. Cloak Mesh 21798 | -2/Protoforge | Found Cep. Dimensional Manipulator 21800 | -2/Protoforge | Found Cep. Cloak Mesh 21873 | -2/Protoforge | Additional patrols dispatched to research labs 21876 | -2/Protoforge | Found Cep. Nanofilaments [Tensile] 21876 | -2/Protoforge | Installed Cep. Nanofilaments [Tensile], 3 resistances modified: KI +20%, TH -10%, I +20% 21883 | -2/Protoforge | Found Transdimensional Reconstructor 21893 | -2/Protoforge | Found Faulty Exp. Force Booster 21894 | -2/Protoforge | Found Cep. Melee Reflex Suite 21899 | -2/Protoforge | Found Faulty Exp. Force Booster 21904 | -2/Protoforge | Found Femtoactuators 21908 | -2/Protoforge | Found Femtoactuators 21911 | -2/Protoforge | Found Femtoactuators 21923 | -2/Protoforge | Spotted Immortal 21971 | -2/Protoforge | Destroyed Immortal 22012 | -2/Protoforge | Destroyed V761-z 22020 | -2/Protoforge | Found Cep. Energy Mantle 22023 | -2/Protoforge | Found Faulty Cep. Energy Mantle 22024 | -2/Protoforge | UFD reported confirmed Drillbomb installation 22044 | -2/Protoforge | Found Faulty Exp. Active Sensor Suite 22048 | -2/Protoforge | Found Exp. Active Sensor Suite 22114 | -2/Protoforge | Found Cep. Gyrokinetic System 22117 | -2/Protoforge | Found Cep. Gyrokinetic System 22170 | -2/Protoforge | Found Cep. Zero-point Core 22181 | -2/Protoforge | Found Faulty Cep. Zero-point Core 22213 | -2/Protoforge | Found Cep. Plasma Driver 22233 | -2/Protoforge | Found Faulty Cep. Matter Streamer 22237 | -2/Protoforge | Found Faulty Cep. Matter Streamer 22337 | -2/Protoforge | UFD reported confirmed Drillbomb installation 22404 | -2/Protoforge | Found Cep. RG22 Armor 22437 | -2/Protoforge | Spotted Executioner 22481 | -2/Protoforge | Destroyed Executioner 22545 | -2/Protoforge | Spotted Striker 22547 | -2/Protoforge | Spotted Striker 22550 | -2/Protoforge | Destroyed Striker 22554 | -2/Protoforge | P-80 Master assimilated allied Lugger 836 22555 | -2/Protoforge | Spotted Executioner 22556 | -2/Protoforge | Spotted Executioner 22557 | -2/Protoforge | Destroyed Executioner 22561 | -2/Protoforge | Spotted Executioner 22563 | -2/Protoforge | Destroyed Executioner 22566 | -2/Protoforge | Destroyed Executioner 22602 | -2/Protoforge | Lost 4 allies 22628 | -2/Protoforge | Found Cep. Chromion Battery 22665 | -2/Protoforge | Spotted Executioner 22667 | -2/Protoforge | Destroyed Executioner 22678 | -2/Protoforge | Spotted Executioner 22681 | -2/Protoforge | Destroyed Executioner 22714 | -2/Protoforge | Spotted Striker 22714 | -2/Protoforge | Spotted Striker 22719 | -2/Protoforge | Destroyed Striker 22719 | -2/Protoforge | Destroyed Striker 22720 | -2/Protoforge | Spotted Striker 22722 | -2/Protoforge | Destroyed Striker 22725 | -2/Protoforge | Spotted Executioner 22731 | -2/Protoforge | Destroyed Striker 22740 | -2/Protoforge | Destroyed Executioner 22746 | -2/Protoforge | Spotted Executioner 22750 | -2/Protoforge | Spotted Executioner 22750 | -2/Protoforge | Spotted Striker 22763 | -2/Protoforge | Destroyed Striker 22771 | -2/Protoforge | Core integrity fell below 50% 22773 | -2/Protoforge | Destroyed Executioner 22817 | -2/Protoforge | Spotted Striker 22831 | -2/Protoforge | Destroyed 32 combat bots 22835 | -2/Protoforge | Destroyed Executioner 22838 | -2/Protoforge | Destroyed Executioner 22842 | -2/Protoforge | Spotted Striker 22849 | -2/Protoforge | Spotted Striker 22851 | -2/Protoforge | Destroyed Striker 22881 | -2/Protoforge | Installed UFD Drillbomb at designated target 22881 | -2/Protoforge | UFD reported confirmed Drillbomb installation 22884 | -2/Protoforge | Destroyed 9 combat bots 22919 | -2/Protoforge | Lost 10 allies 23010 | -2/Protoforge | Spotted Executioner 23010 | -2/Protoforge | Spotted Executioner 23010 | -2/Protoforge | Spotted Striker 23010 | -2/Protoforge | Spotted Striker 23028 | -2/Protoforge | Destroyed Executioner 23048 | -2/Protoforge | Lost 6 allies 23054 | -2/Protoforge | Destroyed Executioner 23065 | -2/Protoforge | Destroyed Striker 23115 | -2/Protoforge | Spotted Striker 23115 | -2/Protoforge | Spotted Striker 23115 | -2/Protoforge | Spotted Executioner 23115 | -2/Protoforge | Spotted Striker 23122 | -2/Protoforge | Destroyed Executioner 23122 | -2/Protoforge | Destroyed Striker 23124 | -2/Protoforge | Destroyed Striker 23135 | -2/Protoforge | Spotted Striker 23138 | -2/Protoforge | Destroyed Striker 23138 | -2/Protoforge | Spotted Striker 23150 | -2/Protoforge | Destroyed Striker 23175 | -2/Protoforge | Build established: Scavenger-Sprinter 23184 | -2/Protoforge | Destroyed 9 combat bots 23185 | -2/Protoforge | Lost 8 allies 23202 | -2/Protoforge | Found UFD Drillbomb 23217 | -2/Protoforge | Installed UFD Drillbomb at designated target 23217 | -2/Protoforge | UFD reported confirmed Drillbomb installation 23218 | -2/Protoforge | Spotted Executioner 23219 | -2/Protoforge | Spotted Executioner 23219 | -2/Protoforge | Spotted Striker 23222 | -2/Protoforge | Spotted Striker 23284 | -2/Protoforge | Found UFD Drillbomb 23303 | -2/Protoforge | Installed UFD Drillbomb at designated target 23303 | -2/Protoforge | UFD reported confirmed Drillbomb installation 23331 | -2/Protoforge | Spotted Executioner 23337 | -2/Protoforge | Spotted Executioner 23353 | -2/Protoforge | Spotted Striker 23355 | -2/Protoforge | Found UFD Drillbomb 23366 | -2/Protoforge | Installed UFD Drillbomb at designated target 23366 | -2/Protoforge | UFD reported confirmed Drillbomb installation 23367 | -2/Protoforge | UFD began Drillbomb countdown 23388 | -2/Protoforge | Entered Access 23388 | -1/Access | Evolved 2 slots: Utility x1, Weapon x1 23392 | -1/Access | Loaded intel: 4 recycling unit locations 23437 | -1/Access | Spotted B-99 Colossus 23440 | -1/Access | Spotted Striker 23441 | -1/Access | Spotted Striker 23591 | -1/Access | Discovered new exit (range 6) 23593 | -1/Access | Destroyed Striker 23605 | -1/Access | Destroyed Striker 23638 | -1/Access | First assault squad dispatched 23664 | -1/Access | System corruption reached 10% 23709 | -1/Access | Identified exit to Surface 23715 | -1/Access | High security lockdown imminent 23736 | -1/Access | Garrison activated, responded to threat 23795 | -1/Access | High security lockdown engaged 23823 | -1/Access | Destroyed 14 combat bots 24060 | -1/Access | Spotted B-99 Colossus 24144 | -1/Access | Spotted Striker 24189 | -1/Access | Spotted Executioner 24189 | -1/Access | Spotted Executioner 24372 | -1/Access | Spotted Striker 24372 | -1/Access | Spotted Executioner 24372 | -1/Access | Spotted Executioner 24375 | -1/Access | Spotted Investigator 24376 | -1/Access | Garrison activated, responded to threat 24476 | -1/Access | Destroyed Executioner 24481 | -1/Access | Destroyed Executioner 24560 | -1/Access | Destroyed Striker 24603 | -1/Access | Spotted Striker 24603 | -1/Access | Spotted Executioner 24603 | -1/Access | Spotted Striker 24618 | -1/Access | Destroyed Striker 24627 | -1/Access | Destroyed Striker 24633 | -1/Access | Destroyed Executioner 24671 | -1/Access | Spotted Striker 24671 | -1/Access | Spotted Executioner 24694 | -1/Access | Destroyed Striker 24697 | -1/Access | Spotted Executioner 24703 | -1/Access | Destroyed Executioner 24705 | -1/Access | Destroyed Executioner 24715 | -1/Access | Found Exp. Core Analyzer 24726 | -1/Access | Destroyed 46 combat bots 24726 | -1/Access | Spotted Striker 24731 | -1/Access | Destroyed Striker 24734 | -1/Access | Build established: Scavenger-Mutant 24741 | -1/Access | Spotted Executioner 24749 | -1/Access | Destroyed Executioner 24792 | -1/Access | Destroyed 9 combat bots 24816 | -1/Access | Spotted Striker 24818 | -1/Access | Spotted Striker 24819 | -1/Access | Destroyed Executioner 24829 | -1/Access | Destroyed Striker 24837 | -1/Access | Spotted Striker 24841 | -1/Access | Destroyed Striker 24850 | -1/Access | Destroyed Striker 24892 | -1/Access | Destroyed 11 combat bots 24900 | -1/Access | Spotted Striker 24900 | -1/Access | Spotted Striker 24901 | -1/Access | Destroyed Striker 24902 | -1/Access | Destroyed Striker 24914 | -1/Access | Spotted Striker 24934 | -1/Access | Destroyed Striker 24979 | -1/Access | Spotted Striker 24981 | -1/Access | Spotted Striker 24993 | -1/Access | Destroyed Striker 25000 | -1/Access | Destroyed Striker 25088 | -1/Access | Destroyed 27 combat bots 25117 | -1/Access | Destroyed Investigator 25130 | -1/Access | Spotted Striker 25141 | -1/Access | Destroyed Striker 25150 | -1/Access | Spotted Striker 25161 | -1/Access | Spotted Striker 25169 | -1/Access | Destroyed Striker 25187 | -1/Access | System corruption reached 30% 25206 | -1/Access | Destroyed Striker 25234 | -1/Access | Lost 7 parts (2p2n2u1w) 25252 | *** | Escaped! Last Messages --------------- (Meltdown). 25224_ Slug penetrates Sealed Heavy Doors. 25230_ System corrupted: Component data lost. 25230_ Slug penetrates Sealed Heavy Doors. 25231_ L-61 Swordsman destroyed. 25233_ G-73 Enforcer suffers critical hit (Meltdown). 25233_ Lgt. Quantum Reactor melted. 25236_ Slug penetrates Sealed Heavy Doors. 25236_ Slug penetrates L-61 Swordsman. 25236_ Slug penetrates Sealed Heavy Doors. 25239_ L-61 Swordsman destroyed. 25241_ Cep. Combat Aerolev Unit destroyed. 25241_ Slug penetrates Sealed Heavy Doors. 25241_ G-73 Enforcer suffers critical hit (Meltdown). 25243_ Acquired 16 matter. 25245_ System corrupted: Heat flow error (+167). 25251_ Discarded Exp. Optical Array. 25252_ Acquired 10 matter. Map ----- +----------------------------------------------------+ | ####"F ????????????????????????????????????? | | ####???????????????????????????????????????? | | ####???????????????????????????????????????? | | ####???????????????????????????????????????? | | " #### ?????????????????????????????????????? | | """ #### ????????????????????????????????????? | | """ #######????????????????????????????????????? | | " ##### #????????????????????????????????????? | | ### #????????????????????????????????????? | | #????????????????????????????????????? | | ############ ????????????????????????????? | | ########### ????????????????????????????? | | %! ########### ????????????????????????????? | | *!!! ############ ????????????????????????????? | | !%=!# ]% ### BB????BB????????????????????? | | =!%!! =% % ### BB????BB????????????????????? | | %=% ### ????????????????????????????? | | ## ! ###"""????"""####???????????????? | | + % ###""""???"%"####???????????????? | | #### ##C%""""" ###%!%""?""%=####???????????????? | | #### ## """"" ###"""%"""%""####???????????????? | | ## ## C""""" ###%[!![!==!*####???????????????? | | ## ## C""""" ###%=""""[%[*####???????????????? | | ## ## C""""" ### ="!!==%%!####???????C???????? | | ## ## """"" ###!!"%%!%"*=###### ????????????? | | ## ## # #%!"![@*"!=###### ???? | | ## ##= = ###!!"%==[%%=###### ???? | | ## ## =#*#|=!"!"""%!###### ???? | | ## ## !#u#[[*!%%==%*#%######+#######???? | | #### ## % #!#==!=]%%!*[#** ####???? | | #### ######+######""""""""]""!##!= " #####??? | | C# #####"" !=%**###=C "C ######## | | w #######"" !=!%!###![=""" ######## | | ########### #######"" %!!###**|"!" ######## | | # #######T =%###=%"" "" ####### | | #wC#######"" [%!###!!! !i =######## | | #A #######"" *!=### ######## | | # #######"" |%#####/##+########### | | ==! + %C CC ggCC !!%!! | | ==! # %% i g =!! | | =!! # ########################+###########+ | | # #################### k [ ## | | # # ] ########## ## | | # + ########## ## | | # # " ####??#### " ##= | | ####+###### # """ ####??#### """ ## | | #### ###### # """####?? + """ ## | | # ###### # " ####??#### " ## | | # ###### # ####??####] ## | | # ###### # ####??#### ! ## | +----------------------------------------------------+ Best States ------------- Heat Dissipation 109 Coolant Potential 100 Energy Generation 83 Energy Capacity 1550 Matter Stores 300 Matter Capacity 300 Sight Range 23 Robot Scan Range 20 Terrain Scan Density 10 ECM Strength 3 Cloak Strength 9 Power Amplification 40 Additional Mass Support 30 EM Shielding 4 Corruption Block 19 Armor Coverage 800 Resistance: KI 20 Resistance: TH 50 Resistance: I 20 Weapon Shielding 66 Point Defense Rating 480 Melee Speed Boost 50 Phase Shifting 15 Evasion (%) 87 Targeting Accuracy 30 Melee Accuracy 13 Core Analysis 8 Recoil Reduction 2 Force Boost 50 Offensive Hacking 36 Defensive Hacking 22 Authchip Count 2 Trap Extractor Capacity 8 Item Schematics ----------------- ECM Suite | -10/Materials | Hacked Powered Hammer | -9/Recycling | Hacked HERF Cannon | -6/Factory | Hacked Exp. Sensor Array | -6/Factory | Scanalyzed CPS Tube | -6/Factory | Scanalyzed Trap Extractor | -6/Factory | Scanalyzed Nuclear Pulse Thruster | -6/Factory | Scanalyzed Adv. Hardlight Generator | -6/Factory | Hacked Adv. Trap Extractor | -6/Factory | Scanalyzed Cld. Cesium-ion Thruster | -6/Factory | Scanalyzed Imp. System Restoration Module | -6/Factory | Hacked Mic. Fission Core | -6/Factory | Hacked Lgt. Antimatter Reactor | -6/Factory | Hacked Combat Drone Bay | -6/Data Miner | Free Lgt. Regenerative Plating | -6/Data Miner | Free Enh. Flexi-carbon Leg | -6/Data Miner | Free Imp. Energy Well | -6/Data Miner | Free Ionic Axe | -6/Data Miner | Free Imp. Heavy Treads | -6/Data Miner | Free Quantum Capacitor | -6/Data Miner | Free Hardcell Cannon | -6/Data Miner | Free Cmb. Gravmag System | -6/Data Miner | Free Adv. Power Amplifier | -6/Data Miner | Free Adv. Medium Treads | -6/Data Miner | Free Adv. Thermal Generator | -4/Factory | Hacked Lrn. Sensor Array | -4/Factory | Hacked Adv. Phase Shifter | -4/Factory | Hacked Exp. Power Amplifier | -3/Research | Scanalyzed Exp. Coolant Injector | -3/Research | Scanalyzed Cld. Impulse Thruster | -3/Research | Scanalyzed Lrg. Storage Unit | -3/Research | Hacked Adv. Remote Shield | -3/Research | Scanalyzed Graphene Brace | -3/Research | Scanalyzed Exp. Q-thruster | -2/Testing | Hacked Exp. Weapon Cycler | -2/Testing | Scanalyzed Centrium Greatsword | -2/Protoforge | Archive Exp. Core Analyzer | -2/Protoforge | Archive Centrium Medium Armor Plating | -2/Protoforge | Archive Adv. Thermal Defense Suite | -2/Protoforge | Archive Hvy. Dispersion Rifle | -2/Protoforge | Archive Imp. Matter Neutralizer | -2/Protoforge | Archive Ragnarok Missile Launcher | -2/Protoforge | Archive Hds. Centrium Leg | -2/Protoforge | Archive Enh. Force Rifle | -2/Protoforge | Archive Hvy. Proton Cannon | -2/Protoforge | Archive Adv. Kinecellerator | -2/Protoforge | Archive Stealth Drone Bay | -2/Protoforge | Archive Robot Schematics ------------------ E-15 Imp | -6/Data Miner | Free R-10 Processor | -6/Data Miner | Free X-72 Disruptor | -6/Data Miner | Free Y-54 Guardian | -6/Data Miner | Free G-73 Enforcer | -2/Protoforge | Archive Y-72 Warden | -2/Protoforge | Archive A-27 Freighter | -2/Protoforge | Archive K-01 Serf | -2/Protoforge | Archive G-67 Veteran | -2/Protoforge | Archive X-87 Electro | -2/Protoforge | Archive R-06 Scavenger | -2/Protoforge | Archive H-88 Terminator | -2/Protoforge | Archive Fabricated ------------ Imp. System Restoration Module | x2 | -6/Factory | Authchip Adv. Trap Extractor | x2 | -6/Factory | Authchip Adv. Hardlight Generator | x2 | -6/Factory Exp. Sensor Array | x1 | -3/Research Lrg. Storage Unit | x1 | -3/Research Exp. Q-thruster | x1 | -2/Protoforge | Authchip Repaired ---------- CPS Tube | 99% | -6/Factory | Broken Cld. Cesium-ion Thruster | 33% | -5/Factory Adv. Cloaking Device | 50% | -4/Factory Imp. Diametric Drive | 56% | -2/Research | Broken Cld. Cesium-ion Thruster | 53% | -2/Testing Studied --------- Lgt. Angular Momentum Engine | -6/Factory | Hacked Nuclear Pulse Thruster | -6/Factory | Hacked Power Sword | -6/Factory | Hacked Lgt. Fission Core | -6/Factory | Hacked Imp. Datajack | -6/Factory | Hacked Fission Core | -5/Factory | Hacked Imp. Grenade Launcher | -5/Factory | Hacked Q-thruster | -3/Research | Hacked Alien Tech Used ----------------- Subatomic Replicator Sigix Broadsword Terrabomb Sigix Terminator High-powered Transdimensional Reconstructor Dimensional Node Initializer Supercharged TR Concept Nanofilaments [Tensile] Achievements -------------- Please No, No That Challenges ------------ None Game ------ Seed PotentialGammaDisplacer Manual? 0 Play Time 09:01:26 Cumulative 841.9 hours Start 2025.12.28 @ 13:02:05 End 2025.12.29 @ 13:03:59 Sessions 5 Manual Loads 0 Difficulty Rogue Special Mode None Game No. 335 Rogue 335 Adventurer 0 Explorer 0 Win Type 0 Total 87 Types 44/6/16/6/6/1/1/3/0/4 Lore% 97 Gallery% 91 Achievement% 85 Wizard Run 0 Options --------- Layout 1 ASCII 0 Keyboard 0 Movement Numpad Keybinds 0 Fullscreen 1 Font 24/Smallcaps Map View 50x35 Zoom Use 0% Tactical HUD 1 Map Filters NONE Filters NONE Steam 1 RUN: 25f2086b-4767-4cd6-b5aa-8690ee8fbdde